{"text_format":"3","workbook":"xlsx","n_sheets":4,"sheets":["Penjejak Markah","Prestasi Anda","Seting","Pengiraan"],"not_rendered":{"defined_names":3,"comments":1},"read":"whole","date_system":"1900"}

{"sheet":"Penjejak Markah","index":0,"n_rows":14,"n_cols":6,"rows_kept":14}
[null,"Masukkan Markah Anda Di Sini"]
[]
[null,null,"Kelas","Jenis","Perihalan","Markah"]
[null,null,"Bahasa Perancis Moden","Kerja rumah","Sejarah Perang Dunia ll",{"v":0.8,"d":"80%"}]
[null,null,"Pemprograman Lanjutan dalam Java","Separuh Penggal",null,{"v":0.75,"d":"75%"}]
[null,null,"Bahasa Sepanyol","Kerja rumah",null,{"v":0.5,"d":"50%"}]
[null,null,"Ilmu Fizik Teori","Kerja rumah",null,{"v":0.95,"d":"95%"}]
[null,null,"Bahasa Perancis Moden","Kerja rumah","Sejarah Perang Dunia l",{"v":0.9,"d":"90%"}]
[null,null,"Bahasa Perancis Moden","Kerja rumah","Halaman 30 - 41",{"v":0.8,"d":"80%"}]
[null,null,"Mengarang","Esei","Kertas pujukan",{"v":0.95,"d":"95%"}]
[null,null,"Matematik 1","Kerja rumah","Halaman 21 & 26",{"v":0.8,"d":"80%"}]
[null,null,"Matematik 2","Kerja rumah","Halaman 15 & 18",{"v":0.85,"d":"85%"}]
[null,null,"Matematik 1","Kerja rumah","Halaman 34 - 36",{"v":0.8,"d":"80%"}]
[null,null,"Matematik 2","Kuiz",null,{"v":0.95,"d":"95%"}]

{"sheet":"Prestasi Anda","index":1,"n_rows":31,"n_cols":8,"rows_kept":31}
[null,"Prestasi Anda"]
[]
[null,null,"Jumlah"]
[null,null,{"$f":"\"Waktu: \"&SUM(tblClasses[Jam Kredit])","v":"Waktu: 24"},{"$f":"AVERAGE(D7:D31)","v":{"v":0.8104761904761906,"d":"81%"}},{"$f":"AVERAGE(E7:E31)","v":{"v":2.7142857142857144,"d":"2.71"}},{"$f":"SUM(F7:F31)","v":{"v":2.625,"d":"2.63"}},{"$f":"IFERROR(HLOOKUP(D4,lstGPAMapping,2),\"\")","v":"B-"}]
[]
[null,null,"Kelas","%","GPA","wGPA","Huruf","Prestasi Keseluruhan"]
[null,null,{"$f":"Pengiraan!C6","v":"Bahasa Perancis Moden"},{"$f":"Pengiraan!AL6","v":{"v":0.8333333333333334,"d":"83%"}},{"$f":"Pengiraan!AM6","v":{"v":3,"d":"3.00"}},{"$f":"IFERROR(E7*Seting!D9/SUM(tblClasses[Jam Kredit]),\"\")","v":{"v":0.375,"d":"0.38"}},{"$f":"Pengiraan!AN6","v":"B"}]
[null,null,{"$f":"Pengiraan!C7","v":"Ilmu Fizik Teori"},{"$f":"Pengiraan!AL7","v":{"v":0.95,"d":"95%"}},{"$f":"Pengiraan!AM7","v":{"v":4,"d":"4.00"}},{"$f":"IFERROR(E8*Seting!D10/SUM(tblClasses[Jam Kredit]),\"\")","v":{"v":0.5,"d":"0.50"}},{"$f":"Pengiraan!AN7","v":"A"}]
[null,null,{"$f":"Pengiraan!C8","v":"Matematik 1"},{"$f":"Pengiraan!AL8","v":{"v":0.8000000000000002,"d":"80%"}},{"$f":"Pengiraan!AM8","v":2.67},{"$f":"IFERROR(E9*Seting!D11/SUM(tblClasses[Jam Kredit]),\"\")","v":{"v":0.445,"d":"0.45"}},{"$f":"Pengiraan!AN8","v":"B-"}]
[null,null,{"$f":"Pengiraan!C9","v":"Matematik 2"},{"$f":"Pengiraan!AL9","v":{"v":0.89,"d":"89%"}},{"$f":"Pengiraan!AM9","v":3.33},{"$f":"IFERROR(E10*Seting!D12/SUM(tblClasses[Jam Kredit]),\"\")","v":{"v":0.555,"d":"0.56"}},{"$f":"Pengiraan!AN9","v":"B+"}]
[null,null,{"$f":"Pengiraan!C10","v":"Pemprograman Lanjutan dalam Java"},{"$f":"Pengiraan!AL10","v":{"v":0.7500000000000001,"d":"75%"}},{"$f":"Pengiraan!AM10","v":{"v":2,"d":"2.00"}},{"$f":"IFERROR(E11*Seting!D13/SUM(tblClasses[Jam Kredit]),\"\")","v":{"v":0.4166666666666667,"d":"0.42"}},{"$f":"Pengiraan!AN10","v":"C"}]
[null,null,{"$f":"Pengiraan!C11","v":"Bahasa Sepanyol"},{"$f":"Pengiraan!AL11","v":{"v":0.5,"d":"50%"}},{"$f":"Pengiraan!AM11","v":{"v":0,"d":"0.00"}},{"$f":"IFERROR(E12*Seting!D14/SUM(tblClasses[Jam Kredit]),\"\")","v":{"v":0,"d":"0.00"}},{"$f":"Pengiraan!AN11","v":"F"}]
[null,null,{"$f":"Pengiraan!C12","v":"Mengarang"},{"$f":"Pengiraan!AL12","v":{"v":0.95,"d":"95%"}},{"$f":"Pengiraan!AM12","v":{"v":4,"d":"4.00"}},{"$f":"IFERROR(E13*Seting!D15/SUM(tblClasses[Jam Kredit]),\"\")","v":{"v":0.3333333333333333,"d":"0.33"}},{"$f":"Pengiraan!AN12","v":"A"}]
[null,null,{"$f":"Pengiraan!C13","v":""},{"$f":"Pengiraan!AL13","v":""},{"$f":"Pengiraan!AM13","v":""},{"$f":"IFERROR(E14*Seting!D16/SUM(tblClasses[Jam Kredit]),\"\")","v":""},{"$f":"Pengiraan!AN13","v":""}]
[null,null,{"$f":"Pengiraan!C14","v":""},{"$f":"Pengiraan!AL14","v":""},{"$f":"Pengiraan!AM14","v":""},{"$f":"IFERROR(E15*Seting!D17/SUM(tblClasses[Jam Kredit]),\"\")","v":""},{"$f":"Pengiraan!AN14","v":""}]
[null,null,{"$f":"Pengiraan!C15","v":""},{"$f":"Pengiraan!AL15","v":""},{"$f":"Pengiraan!AM15","v":""},{"$f":"IFERROR(E16*Seting!D18/SUM(tblClasses[Jam Kredit]),\"\")","v":""},{"$f":"Pengiraan!AN15","v":""}]
[null,null,{"$f":"Pengiraan!C16","v":""},{"$f":"Pengiraan!AL16","v":""},{"$f":"Pengiraan!AM16","v":""},{"$f":"IFERROR(E17*Seting!D19/SUM(tblClasses[Jam Kredit]),\"\")","v":""},{"$f":"Pengiraan!AN16","v":""}]
[null,null,{"$f":"Pengiraan!C17","v":""},{"$f":"Pengiraan!AL17","v":""},{"$f":"Pengiraan!AM17","v":""},{"$f":"IFERROR(E18*Seting!D20/SUM(tblClasses[Jam Kredit]),\"\")","v":""},{"$f":"Pengiraan!AN17","v":""}]
[null,null,{"$f":"Pengiraan!C18","v":""},{"$f":"Pengiraan!AL18","v":""},{"$f":"Pengiraan!AM18","v":""},{"$f":"IFERROR(E19*Seting!D21/SUM(tblClasses[Jam Kredit]),\"\")","v":""},{"$f":"Pengiraan!AN18","v":""}]
[null,null,{"$f":"Pengiraan!C19","v":""},{"$f":"Pengiraan!AL19","v":""},{"$f":"Pengiraan!AM19","v":""},{"$f":"IFERROR(E20*Seting!D22/SUM(tblClasses[Jam Kredit]),\"\")","v":""},{"$f":"Pengiraan!AN19","v":""}]
[null,null,{"$f":"Pengiraan!C20","v":""},{"$f":"Pengiraan!AL20","v":""},{"$f":"Pengiraan!AM20","v":""},{"$f":"IFERROR(E21*Seting!D23/SUM(tblClasses[Jam Kredit]),\"\")","v":""},{"$f":"Pengiraan!AN20","v":""}]
[null,null,{"$f":"Pengiraan!C21","v":""},{"$f":"Pengiraan!AL21","v":""},{"$f":"Pengiraan!AM21","v":""},{"$f":"IFERROR(E22*Seting!D24/SUM(tblClasses[Jam Kredit]),\"\")","v":""},{"$f":"Pengiraan!AN21","v":""}]
[null,null,{"$f":"Pengiraan!C22","v":""},{"$f":"Pengiraan!AL22","v":""},{"$f":"Pengiraan!AM22","v":""},{"$f":"IFERROR(E23*Seting!D25/SUM(tblClasses[Jam Kredit]),\"\")","v":""},{"$f":"Pengiraan!AN22","v":""}]
[null,null,{"$f":"Pengiraan!C23","v":""},{"$f":"Pengiraan!AL23","v":""},{"$f":"Pengiraan!AM23","v":""},{"$f":"IFERROR(E24*Seting!D26/SUM(tblClasses[Jam Kredit]),\"\")","v":""},{"$f":"Pengiraan!AN23","v":""}]
[null,null,{"$f":"Pengiraan!C24","v":""},{"$f":"Pengiraan!AL24","v":""},{"$f":"Pengiraan!AM24","v":""},{"$f":"IFERROR(E25*Seting!D27/SUM(tblClasses[Jam Kredit]),\"\")","v":""},{"$f":"Pengiraan!AN24","v":""}]
[null,null,{"$f":"Pengiraan!C25","v":""},{"$f":"Pengiraan!AL25","v":""},{"$f":"Pengiraan!AM25","v":""},{"$f":"IFERROR(E26*Seting!D28/SUM(tblClasses[Jam Kredit]),\"\")","v":""},{"$f":"Pengiraan!AN25","v":""}]
[null,null,{"$f":"Pengiraan!C26","v":""},{"$f":"Pengiraan!AL26","v":""},{"$f":"Pengiraan!AM26","v":""},{"$f":"IFERROR(E27*Seting!D29/SUM(tblClasses[Jam Kredit]),\"\")","v":""},{"$f":"Pengiraan!AN26","v":""}]
[null,null,{"$f":"Pengiraan!C27","v":""},{"$f":"Pengiraan!AL27","v":""},{"$f":"Pengiraan!AM27","v":""},{"$f":"IFERROR(E28*Seting!D30/SUM(tblClasses[Jam Kredit]),\"\")","v":""},{"$f":"Pengiraan!AN27","v":""}]
[null,null,{"$f":"Pengiraan!C28","v":""},{"$f":"Pengiraan!AL28","v":""},{"$f":"Pengiraan!AM28","v":""},{"$f":"IFERROR(E29*Seting!D31/SUM(tblClasses[Jam Kredit]),\"\")","v":""},{"$f":"Pengiraan!AN28","v":""}]
[null,null,{"$f":"Pengiraan!C29","v":""},{"$f":"Pengiraan!AL29","v":""},{"$f":"Pengiraan!AM29","v":""},{"$f":"IFERROR(E30*Seting!D32/SUM(tblClasses[Jam Kredit]),\"\")","v":""},{"$f":"Pengiraan!AN29","v":""}]
[null,null,{"$f":"Pengiraan!C30","v":""},{"$f":"Pengiraan!AL30","v":""},{"$f":"Pengiraan!AM30","v":""},{"$f":"IFERROR(E31*Seting!D33/SUM(tblClasses[Jam Kredit]),\"\")","v":""},{"$f":"Pengiraan!AN30","v":""}]

{"sheet":"Seting","index":2,"n_rows":15,"n_cols":16,"rows_kept":15,"merged":[[5,2,5,15]]}
[null,"Seting"]
[null,null,"Markah dan pemetaan GPA"]
[null,null,"Peratusan",{"v":0,"d":"0%"},{"v":0.6,"d":"60%"},{"v":0.63,"d":"63%"},{"v":0.67,"d":"67%"},{"v":0.7,"d":"70%"},{"v":0.73,"d":"73%"},{"v":0.77,"d":"77%"},{"v":0.8,"d":"80%"},{"v":0.83,"d":"83%"},{"v":0.87,"d":"87%"},{"v":0.9,"d":"90%"},{"v":0.93,"d":"93%"},{"v":0.97,"d":"97%"}]
[null,null,"Gred Huruf","F","D-","D","D+","C-","C","C+","B-","B","B+","A-","A","A+"]
[null,null,"GPA",0,0.67,1,1.33,1.67,2,2.33,2.67,3,3.33,3.67,4,4]
[]
[null,null,"Markah berwajaran sehingga kepada 25 kelas"]
[null,null,"Kelas yang anda hadiri","Jam Kredit","Kerja rumah","Esei","Kuiz","Projek","Separuh Penggal","Peperiksaan Akhir","Lain","% Jumlah"]
[null,null,"Bahasa Perancis Moden",{"v":3,"d":"3.0"},{"v":0.1,"d":"10%"},{"v":0.15,"d":"15%"},{"v":0.15,"d":"15%"},{"v":0.1,"d":"10%"},{"v":0.2,"d":"20%"},{"v":0.3,"d":"30%"},null,{"$f":"SUM(tblClasses[[#This Row],[Kerja rumah]:[Lain]])","v":{"v":1,"d":"100%"}}]
[null,null,"Ilmu Fizik Teori",{"v":3,"d":"3.0"},{"v":0.15,"d":"15%"},{"v":0.15,"d":"15%"},{"v":0.1,"d":"10%"},{"v":0.1,"d":"10%"},{"v":0.15,"d":"15%"},{"v":0.3,"d":"30%"},{"v":0.05,"d":"5%"},{"$f":"SUM(tblClasses[[#This Row],[Kerja rumah]:[Lain]])","v":{"v":1,"d":"100%"}}]
[null,null,"Matematik 1",{"v":4,"d":"4.0"},{"v":0.1,"d":"10%"},{"v":0.15,"d":"15%"},{"v":0.15,"d":"15%"},{"v":0.1,"d":"10%"},{"v":0.2,"d":"20%"},{"v":0.3,"d":"30%"},null,{"$f":"SUM(tblClasses[[#This Row],[Kerja rumah]:[Lain]])","v":{"v":1,"d":"100%"}}]
[null,null,"Matematik 2",{"v":4,"d":"4.0"},{"v":0.15,"d":"15%"},{"v":0.15,"d":"15%"},{"v":0.1,"d":"10%"},{"v":0.1,"d":"10%"},{"v":0.15,"d":"15%"},{"v":0.3,"d":"30%"},{"v":0.05,"d":"5%"},{"$f":"SUM(tblClasses[[#This Row],[Kerja rumah]:[Lain]])","v":{"v":1,"d":"100%"}}]
[null,null,"Pemprograman Lanjutan dalam Java",{"v":5,"d":"5.0"},{"v":0.15,"d":"15%"},{"v":0.15,"d":"15%"},{"v":0.1,"d":"10%"},{"v":0.1,"d":"10%"},{"v":0.2,"d":"20%"},{"v":0.3,"d":"30%"},null,{"$f":"SUM(tblClasses[[#This Row],[Kerja rumah]:[Lain]])","v":{"v":1,"d":"100%"}}]
[null,null,"Bahasa Sepanyol",{"v":3,"d":"3.0"},{"v":0.1,"d":"10%"},{"v":0.15,"d":"15%"},{"v":0.17,"d":"17%"},{"v":0.13,"d":"13%"},{"v":0.2,"d":"20%"},{"v":0.2,"d":"20%"},{"v":0.05,"d":"5%"},{"$f":"SUM(tblClasses[[#This Row],[Kerja rumah]:[Lain]])","v":{"v":1,"d":"100%"}}]
[null,null,"Mengarang",{"v":2,"d":"2.0"},{"v":0.15,"d":"15%"},{"v":0.15,"d":"15%"},{"v":0.12,"d":"12%"},{"v":0.15,"d":"15%"},{"v":0.15,"d":"15%"},{"v":0.25,"d":"25%"},{"v":0.03,"d":"3%"},{"$f":"SUM(tblClasses[[#This Row],[Kerja rumah]:[Lain]])","v":{"v":1,"d":"100%"}}]

{"sheet":"Pengiraan","index":3,"n_rows":657,"n_cols":40,"rows_kept":657,"hidden":true}
[null,"Pengiraan"]
[null,null,"Lembaran kerja ini menyediakan pengiraan untuk gred & GPA anda dan sepatutnya kekal tersembunyi. Sebarang perubahan terhadap helaian ini akan menyebabkan ralat."]
[]
[null,null,"Senarai Kelas Semasa","Markah (daripada 1)",{"$nulls":24},"Pengiraan Gred"]
[null,null,"Kelas",1,2,3,4,5,6,7,8,9,10,11,12,13,14,15,16,17,18,19,20,21,22,23,24,25,{"$f":"tblClasses[[#Headers],[Kerja rumah]]","v":"Kerja rumah"},{"$f":"tblClasses[[#Headers],[Esei]]","v":"Esei"},{"$f":"tblClasses[[#Headers],[Kuiz]]","v":"Kuiz"},{"$f":"tblClasses[[#Headers],[Projek]]","v":"Projek"},{"$f":"tblClasses[[#Headers],[Separuh Penggal]]","v":"Separuh Penggal"},{"$f":"tblClasses[[#Headers],[Peperiksaan Akhir]]","v":"Peperiksaan Akhir"},{"$f":"tblClasses[[#Headers],[Lain]]","v":"Lain"},"Jumlah","Jumlah Markah Mungkin","Jumlah %","Markah Gred","Gred Huruf"]
[null,null,{"$f":"IF(Seting!C9=\"\",\"\",Seting!C9)","v":"Bahasa Perancis Moden"},{"$f":"IFERROR(INDEX(tblClassScores[],MATCH($C6:$C30&D$5:AB$5,Pengiraan!$C$33:$C$657,0),4),\"\")","v":{"v":0.8,"d":"80%"}},{"v":0.9,"d":"90%"},{"v":0.8,"d":"80%"},"","","","","","","","","","","","","","","","","","","","","","",{"$f":"IFERROR(AVERAGEIFS(tblClassScores[Markah],tblClassScores[Kelas],Pengiraan!$C6,tblClassScores[Jenis],Pengiraan!AC$5)*Seting!E9,\"\")","v":0.08333333333333334},{"$f":"IFERROR(AVERAGEIFS(tblClassScores[Markah],tblClassScores[Kelas],Pengiraan!$C6,tblClassScores[Jenis],Pengiraan!AD$5)*Seting!F9,\"\")","v":""},{"$f":"IFERROR(AVERAGEIFS(tblClassScores[Markah],tblClassScores[Kelas],Pengiraan!$C6,tblClassScores[Jenis],Pengiraan!AE$5)*Seting!G9,\"\")","v":""},{"$f":"IFERROR(AVERAGEIFS(tblClassScores[Markah],tblClassScores[Kelas],Pengiraan!$C6,tblClassScores[Jenis],Pengiraan!AF$5)*Seting!H9,\"\")","v":""},{"$f":"IFERROR(AVERAGEIFS(tblClassScores[Markah],tblClassScores[Kelas],Pengiraan!$C6,tblClassScores[Jenis],Pengiraan!AG$5)*Seting!I9,\"\")","v":""},{"$f":"IFERROR(AVERAGEIFS(tblClassScores[Markah],tblClassScores[Kelas],Pengiraan!$C6,tblClassScores[Jenis],Pengiraan!AH$5)*Seting!J9,\"\")","v":""},{"$f":"IFERROR(AVERAGEIFS(tblClassScores[Markah],tblClassScores[Kelas],Pengiraan!$C6,tblClassScores[Jenis],Pengiraan!AI$5)*Seting!K9,\"\")","v":""},{"$f":"SUM(AC6:AI6)","v":0.08333333333333334},{"$f":"SUMIFS(Seting!E9:K9,Pengiraan!AC6:AI6,\">0\")","v":0.1},{"$f":"IFERROR(AJ6/AK6,\"\")","v":{"v":0.8333333333333334,"d":"83%"}},{"$f":"IFERROR(HLOOKUP(AL6,lstGPAMapping,3),\"\")","v":3},{"$f":"IFERROR(HLOOKUP(AL6,lstGPAMapping,2),\"\")","v":"B"}]
[null,null,{"$f":"IF(Seting!C10=\"\",\"\",Seting!C10)","v":"Ilmu Fizik Teori"},{"v":0.95,"d":"95%"},"","","","","","","","","","","","","","","","","","","","","","","","",{"$f":"IFERROR(AVERAGEIFS(tblClassScores[Markah],tblClassScores[Kelas],Pengiraan!$C7,tblClassScores[Jenis],Pengiraan!AC$5)*Seting!E10,\"\")","v":0.1425},{"$f":"IFERROR(AVERAGEIFS(tblClassScores[Markah],tblClassScores[Kelas],Pengiraan!$C7,tblClassScores[Jenis],Pengiraan!AD$5)*Seting!F10,\"\")","v":""},{"$f":"IFERROR(AVERAGEIFS(tblClassScores[Markah],tblClassScores[Kelas],Pengiraan!$C7,tblClassScores[Jenis],Pengiraan!AE$5)*Seting!G10,\"\")","v":""},{"$f":"IFERROR(AVERAGEIFS(tblClassScores[Markah],tblClassScores[Kelas],Pengiraan!$C7,tblClassScores[Jenis],Pengiraan!AF$5)*Seting!H10,\"\")","v":""},{"$f":"IFERROR(AVERAGEIFS(tblClassScores[Markah],tblClassScores[Kelas],Pengiraan!$C7,tblClassScores[Jenis],Pengiraan!AG$5)*Seting!I10,\"\")","v":""},{"$f":"IFERROR(AVERAGEIFS(tblClassScores[Markah],tblClassScores[Kelas],Pengiraan!$C7,tblClassScores[Jenis],Pengiraan!AH$5)*Seting!J10,\"\")","v":""},{"$f":"IFERROR(AVERAGEIFS(tblClassScores[Markah],tblClassScores[Kelas],Pengiraan!$C7,tblClassScores[Jenis],Pengiraan!AI$5)*Seting!K10,\"\")","v":""},{"$f":"SUM(AC7:AI7)","v":0.1425},{"$f":"SUMIFS(Seting!E10:K10,Pengiraan!AC7:AI7,\">0\")","v":0.15},{"$f":"IFERROR(AJ7/AK7,\"\")","v":{"v":0.95,"d":"95%"}},4,"A"]
[null,null,{"$f":"IF(Seting!C11=\"\",\"\",Seting!C11)","v":"Matematik 1"},{"v":0.8,"d":"80%"},{"v":0.8,"d":"80%"},"","","","","","","","","","","","","","","","","","","","","","","",{"$f":"IFERROR(AVERAGEIFS(tblClassScores[Markah],tblClassScores[Kelas],Pengiraan!$C8,tblClassScores[Jenis],Pengiraan!AC$5)*Seting!E11,\"\")","v":0.08000000000000002},{"$f":"IFERROR(AVERAGEIFS(tblClassScores[Markah],tblClassScores[Kelas],Pengiraan!$C8,tblClassScores[Jenis],Pengiraan!AD$5)*Seting!F11,\"\")","v":""},{"$f":"IFERROR(AVERAGEIFS(tblClassScores[Markah],tblClassScores[Kelas],Pengiraan!$C8,tblClassScores[Jenis],Pengiraan!AE$5)*Seting!G11,\"\")","v":""},{"$f":"IFERROR(AVERAGEIFS(tblClassScores[Markah],tblClassScores[Kelas],Pengiraan!$C8,tblClassScores[Jenis],Pengiraan!AF$5)*Seting!H11,\"\")","v":""},{"$f":"IFERROR(AVERAGEIFS(tblClassScores[Markah],tblClassScores[Kelas],Pengiraan!$C8,tblClassScores[Jenis],Pengiraan!AG$5)*Seting!I11,\"\")","v":""},{"$f":"IFERROR(AVERAGEIFS(tblClassScores[Markah],tblClassScores[Kelas],Pengiraan!$C8,tblClassScores[Jenis],Pengiraan!AH$5)*Seting!J11,\"\")","v":""},{"$f":"IFERROR(AVERAGEIFS(tblClassScores[Markah],tblClassScores[Kelas],Pengiraan!$C8,tblClassScores[Jenis],Pengiraan!AI$5)*Seting!K11,\"\")","v":""},0.08000000000000002,{"$f":"SUMIFS(Seting!E11:K11,Pengiraan!AC8:AI8,\">0\")","v":0.1},{"v":0.8000000000000002,"d":"80%"},2.67,"B-"]
[null,null,{"$f":"IF(Seting!C12=\"\",\"\",Seting!C12)","v":"Matematik 2"},{"v":0.85,"d":"85%"},{"v":0.95,"d":"95%"},"","","","","","","","","","","","","","","","","","","","","","","",{"$f":"IFERROR(AVERAGEIFS(tblClassScores[Markah],tblClassScores[Kelas],Pengiraan!$C9,tblClassScores[Jenis],Pengiraan!AC$5)*Seting!E12,\"\")","v":0.1275},{"$f":"IFERROR(AVERAGEIFS(tblClassScores[Markah],tblClassScores[Kelas],Pengiraan!$C9,tblClassScores[Jenis],Pengiraan!AD$5)*Seting!F12,\"\")","v":""},{"$f":"IFERROR(AVERAGEIFS(tblClassScores[Markah],tblClassScores[Kelas],Pengiraan!$C9,tblClassScores[Jenis],Pengiraan!AE$5)*Seting!G12,\"\")","v":0.095},{"$f":"IFERROR(AVERAGEIFS(tblClassScores[Markah],tblClassScores[Kelas],Pengiraan!$C9,tblClassScores[Jenis],Pengiraan!AF$5)*Seting!H12,\"\")","v":""},{"$f":"IFERROR(AVERAGEIFS(tblClassScores[Markah],tblClassScores[Kelas],Pengiraan!$C9,tblClassScores[Jenis],Pengiraan!AG$5)*Seting!I12,\"\")","v":""},{"$f":"IFERROR(AVERAGEIFS(tblClassScores[Markah],tblClassScores[Kelas],Pengiraan!$C9,tblClassScores[Jenis],Pengiraan!AH$5)*Seting!J12,\"\")","v":""},{"$f":"IFERROR(AVERAGEIFS(tblClassScores[Markah],tblClassScores[Kelas],Pengiraan!$C9,tblClassScores[Jenis],Pengiraan!AI$5)*Seting!K12,\"\")","v":""},0.2225,{"$f":"SUMIFS(Seting!E12:K12,Pengiraan!AC9:AI9,\">0\")","v":0.25},{"v":0.89,"d":"89%"},3.33,"B+"]
[null,null,{"$f":"IF(Seting!C13=\"\",\"\",Seting!C13)","v":"Pemprograman Lanjutan dalam Java"},{"v":0.75,"d":"75%"},"","","","","","","","","","","","","","","","","","","","","","","","",{"$f":"IFERROR(AVERAGEIFS(tblClassScores[Markah],tblClassScores[Kelas],Pengiraan!$C10,tblClassScores[Jenis],Pengiraan!AC$5)*Seting!E13,\"\")","v":""},{"$f":"IFERROR(AVERAGEIFS(tblClassScores[Markah],tblClassScores[Kelas],Pengiraan!$C10,tblClassScores[Jenis],Pengiraan!AD$5)*Seting!F13,\"\")","v":""},{"$f":"IFERROR(AVERAGEIFS(tblClassScores[Markah],tblClassScores[Kelas],Pengiraan!$C10,tblClassScores[Jenis],Pengiraan!AE$5)*Seting!G13,\"\")","v":""},{"$f":"IFERROR(AVERAGEIFS(tblClassScores[Markah],tblClassScores[Kelas],Pengiraan!$C10,tblClassScores[Jenis],Pengiraan!AF$5)*Seting!H13,\"\")","v":""},{"$f":"IFERROR(AVERAGEIFS(tblClassScores[Markah],tblClassScores[Kelas],Pengiraan!$C10,tblClassScores[Jenis],Pengiraan!AG$5)*Seting!I13,\"\")","v":0.15000000000000002},{"$f":"IFERROR(AVERAGEIFS(tblClassScores[Markah],tblClassScores[Kelas],Pengiraan!$C10,tblClassScores[Jenis],Pengiraan!AH$5)*Seting!J13,\"\")","v":""},{"$f":"IFERROR(AVERAGEIFS(tblClassScores[Markah],tblClassScores[Kelas],Pengiraan!$C10,tblClassScores[Jenis],Pengiraan!AI$5)*Seting!K13,\"\")","v":""},0.15000000000000002,{"$f":"SUMIFS(Seting!E13:K13,Pengiraan!AC10:AI10,\">0\")","v":0.2},{"v":0.7500000000000001,"d":"75%"},2,"C"]
[null,null,{"$f":"IF(Seting!C14=\"\",\"\",Seting!C14)","v":"Bahasa Sepanyol"},{"v":0.5,"d":"50%"},"","","","","","","","","","","","","","","","","","","","","","","","",{"$f":"IFERROR(AVERAGEIFS(tblClassScores[Markah],tblClassScores[Kelas],Pengiraan!$C11,tblClassScores[Jenis],Pengiraan!AC$5)*Seting!E14,\"\")","v":0.05},{"$f":"IFERROR(AVERAGEIFS(tblClassScores[Markah],tblClassScores[Kelas],Pengiraan!$C11,tblClassScores[Jenis],Pengiraan!AD$5)*Seting!F14,\"\")","v":""},{"$f":"IFERROR(AVERAGEIFS(tblClassScores[Markah],tblClassScores[Kelas],Pengiraan!$C11,tblClassScores[Jenis],Pengiraan!AE$5)*Seting!G14,\"\")","v":""},{"$f":"IFERROR(AVERAGEIFS(tblClassScores[Markah],tblClassScores[Kelas],Pengiraan!$C11,tblClassScores[Jenis],Pengiraan!AF$5)*Seting!H14,\"\")","v":""},{"$f":"IFERROR(AVERAGEIFS(tblClassScores[Markah],tblClassScores[Kelas],Pengiraan!$C11,tblClassScores[Jenis],Pengiraan!AG$5)*Seting!I14,\"\")","v":""},{"$f":"IFERROR(AVERAGEIFS(tblClassScores[Markah],tblClassScores[Kelas],Pengiraan!$C11,tblClassScores[Jenis],Pengiraan!AH$5)*Seting!J14,\"\")","v":""},{"$f":"IFERROR(AVERAGEIFS(tblClassScores[Markah],tblClassScores[Kelas],Pengiraan!$C11,tblClassScores[Jenis],Pengiraan!AI$5)*Seting!K14,\"\")","v":""},0.05,{"$f":"SUMIFS(Seting!E14:K14,Pengiraan!AC11:AI11,\">0\")","v":0.1},{"v":0.5,"d":"50%"},0,"F"]
[null,null,{"$f":"IF(Seting!C15=\"\",\"\",Seting!C15)","v":"Mengarang"},{"v":0.95,"d":"95%"},"","","","","","","","","","","","","","","","","","","","","","","","",{"$f":"IFERROR(AVERAGEIFS(tblClassScores[Markah],tblClassScores[Kelas],Pengiraan!$C12,tblClassScores[Jenis],Pengiraan!AC$5)*Seting!E15,\"\")","v":""},{"$f":"IFERROR(AVERAGEIFS(tblClassScores[Markah],tblClassScores[Kelas],Pengiraan!$C12,tblClassScores[Jenis],Pengiraan!AD$5)*Seting!F15,\"\")","v":0.1425},{"$f":"IFERROR(AVERAGEIFS(tblClassScores[Markah],tblClassScores[Kelas],Pengiraan!$C12,tblClassScores[Jenis],Pengiraan!AE$5)*Seting!G15,\"\")","v":""},{"$f":"IFERROR(AVERAGEIFS(tblClassScores[Markah],tblClassScores[Kelas],Pengiraan!$C12,tblClassScores[Jenis],Pengiraan!AF$5)*Seting!H15,\"\")","v":""},{"$f":"IFERROR(AVERAGEIFS(tblClassScores[Markah],tblClassScores[Kelas],Pengiraan!$C12,tblClassScores[Jenis],Pengiraan!AG$5)*Seting!I15,\"\")","v":""},{"$f":"IFERROR(AVERAGEIFS(tblClassScores[Markah],tblClassScores[Kelas],Pengiraan!$C12,tblClassScores[Jenis],Pengiraan!AH$5)*Seting!J15,\"\")","v":""},{"$f":"IFERROR(AVERAGEIFS(tblClassScores[Markah],tblClassScores[Kelas],Pengiraan!$C12,tblClassScores[Jenis],Pengiraan!AI$5)*Seting!K15,\"\")","v":""},0.1425,{"$f":"SUMIFS(Seting!E15:K15,Pengiraan!AC12:AI12,\">0\")","v":0.15},{"v":0.95,"d":"95%"},4,"A"]
[null,null,{"$f":"IF(Seting!C16=\"\",\"\",Seting!C16)","v":""},"","","","","","","","","","","","","","","","","","","","","","","","","",{"$f":"IFERROR(AVERAGEIFS(tblClassScores[Markah],tblClassScores[Kelas],Pengiraan!$C13,tblClassScores[Jenis],Pengiraan!AC$5)*Seting!#REF!,\"\")","v":""},{"$f":"IFERROR(AVERAGEIFS(tblClassScores[Markah],tblClassScores[Kelas],Pengiraan!$C13,tblClassScores[Jenis],Pengiraan!AD$5)*Seting!#REF!,\"\")","v":""},{"$f":"IFERROR(AVERAGEIFS(tblClassScores[Markah],tblClassScores[Kelas],Pengiraan!$C13,tblClassScores[Jenis],Pengiraan!AE$5)*Seting!#REF!,\"\")","v":""},{"$f":"IFERROR(AVERAGEIFS(tblClassScores[Markah],tblClassScores[Kelas],Pengiraan!$C13,tblClassScores[Jenis],Pengiraan!AF$5)*Seting!#REF!,\"\")","v":""},{"$f":"IFERROR(AVERAGEIFS(tblClassScores[Markah],tblClassScores[Kelas],Pengiraan!$C13,tblClassScores[Jenis],Pengiraan!AG$5)*Seting!#REF!,\"\")","v":""},{"$f":"IFERROR(AVERAGEIFS(tblClassScores[Markah],tblClassScores[Kelas],Pengiraan!$C13,tblClassScores[Jenis],Pengiraan!AH$5)*Seting!#REF!,\"\")","v":""},{"$f":"IFERROR(AVERAGEIFS(tblClassScores[Markah],tblClassScores[Kelas],Pengiraan!$C13,tblClassScores[Jenis],Pengiraan!AI$5)*Seting!#REF!,\"\")","v":""},0,{"$f":"SUMIFS(Seting!E16:K16,Pengiraan!AC13:AI13,\">0\")","v":0},"","",""]
[null,null,{"$f":"IF(Seting!C17=\"\",\"\",Seting!C17)","v":""},"","","","","","","","","","","","","","","","","","","","","","","","","",{"$f":"IFERROR(AVERAGEIFS(tblClassScores[Markah],tblClassScores[Kelas],Pengiraan!$C14,tblClassScores[Jenis],Pengiraan!AC$5)*Seting!#REF!,\"\")","v":""},{"$f":"IFERROR(AVERAGEIFS(tblClassScores[Markah],tblClassScores[Kelas],Pengiraan!$C14,tblClassScores[Jenis],Pengiraan!AD$5)*Seting!#REF!,\"\")","v":""},{"$f":"IFERROR(AVERAGEIFS(tblClassScores[Markah],tblClassScores[Kelas],Pengiraan!$C14,tblClassScores[Jenis],Pengiraan!AE$5)*Seting!#REF!,\"\")","v":""},{"$f":"IFERROR(AVERAGEIFS(tblClassScores[Markah],tblClassScores[Kelas],Pengiraan!$C14,tblClassScores[Jenis],Pengiraan!AF$5)*Seting!#REF!,\"\")","v":""},{"$f":"IFERROR(AVERAGEIFS(tblClassScores[Markah],tblClassScores[Kelas],Pengiraan!$C14,tblClassScores[Jenis],Pengiraan!AG$5)*Seting!#REF!,\"\")","v":""},{"$f":"IFERROR(AVERAGEIFS(tblClassScores[Markah],tblClassScores[Kelas],Pengiraan!$C14,tblClassScores[Jenis],Pengiraan!AH$5)*Seting!#REF!,\"\")","v":""},{"$f":"IFERROR(AVERAGEIFS(tblClassScores[Markah],tblClassScores[Kelas],Pengiraan!$C14,tblClassScores[Jenis],Pengiraan!AI$5)*Seting!#REF!,\"\")","v":""},0,{"$f":"SUMIFS(Seting!E17:K17,Pengiraan!AC14:AI14,\">0\")","v":0},"","",""]
[null,null,{"$f":"IF(Seting!C18=\"\",\"\",Seting!C18)","v":""},"","","","","","","","","","","","","","","","","","","","","","","","","",{"$f":"IFERROR(AVERAGEIFS(tblClassScores[Markah],tblClassScores[Kelas],Pengiraan!$C15,tblClassScores[Jenis],Pengiraan!AC$5)*Seting!#REF!,\"\")","v":""},{"$f":"IFERROR(AVERAGEIFS(tblClassScores[Markah],tblClassScores[Kelas],Pengiraan!$C15,tblClassScores[Jenis],Pengiraan!AD$5)*Seting!#REF!,\"\")","v":""},{"$f":"IFERROR(AVERAGEIFS(tblClassScores[Markah],tblClassScores[Kelas],Pengiraan!$C15,tblClassScores[Jenis],Pengiraan!AE$5)*Seting!#REF!,\"\")","v":""},{"$f":"IFERROR(AVERAGEIFS(tblClassScores[Markah],tblClassScores[Kelas],Pengiraan!$C15,tblClassScores[Jenis],Pengiraan!AF$5)*Seting!#REF!,\"\")","v":""},{"$f":"IFERROR(AVERAGEIFS(tblClassScores[Markah],tblClassScores[Kelas],Pengiraan!$C15,tblClassScores[Jenis],Pengiraan!AG$5)*Seting!#REF!,\"\")","v":""},{"$f":"IFERROR(AVERAGEIFS(tblClassScores[Markah],tblClassScores[Kelas],Pengiraan!$C15,tblClassScores[Jenis],Pengiraan!AH$5)*Seting!#REF!,\"\")","v":""},{"$f":"IFERROR(AVERAGEIFS(tblClassScores[Markah],tblClassScores[Kelas],Pengiraan!$C15,tblClassScores[Jenis],Pengiraan!AI$5)*Seting!#REF!,\"\")","v":""},0,{"$f":"SUMIFS(Seting!E18:K18,Pengiraan!AC15:AI15,\">0\")","v":0},"","",""]
[null,null,{"$f":"IF(Seting!C19=\"\",\"\",Seting!C19)","v":""},"","","","","","","","","","","","","","","","","","","","","","","","","",{"$f":"IFERROR(AVERAGEIFS(tblClassScores[Markah],tblClassScores[Kelas],Pengiraan!$C16,tblClassScores[Jenis],Pengiraan!AC$5)*Seting!#REF!,\"\")","v":""},{"$f":"IFERROR(AVERAGEIFS(tblClassScores[Markah],tblClassScores[Kelas],Pengiraan!$C16,tblClassScores[Jenis],Pengiraan!AD$5)*Seting!#REF!,\"\")","v":""},{"$f":"IFERROR(AVERAGEIFS(tblClassScores[Markah],tblClassScores[Kelas],Pengiraan!$C16,tblClassScores[Jenis],Pengiraan!AE$5)*Seting!#REF!,\"\")","v":""},{"$f":"IFERROR(AVERAGEIFS(tblClassScores[Markah],tblClassScores[Kelas],Pengiraan!$C16,tblClassScores[Jenis],Pengiraan!AF$5)*Seting!#REF!,\"\")","v":""},{"$f":"IFERROR(AVERAGEIFS(tblClassScores[Markah],tblClassScores[Kelas],Pengiraan!$C16,tblClassScores[Jenis],Pengiraan!AG$5)*Seting!#REF!,\"\")","v":""},{"$f":"IFERROR(AVERAGEIFS(tblClassScores[Markah],tblClassScores[Kelas],Pengiraan!$C16,tblClassScores[Jenis],Pengiraan!AH$5)*Seting!#REF!,\"\")","v":""},{"$f":"IFERROR(AVERAGEIFS(tblClassScores[Markah],tblClassScores[Kelas],Pengiraan!$C16,tblClassScores[Jenis],Pengiraan!AI$5)*Seting!#REF!,\"\")","v":""},0,{"$f":"SUMIFS(Seting!E19:K19,Pengiraan!AC16:AI16,\">0\")","v":0},"","",""]
[null,null,{"$f":"IF(Seting!C20=\"\",\"\",Seting!C20)","v":""},"","","","","","","","","","","","","","","","","","","","","","","","","",{"$f":"IFERROR(AVERAGEIFS(tblClassScores[Markah],tblClassScores[Kelas],Pengiraan!$C17,tblClassScores[Jenis],Pengiraan!AC$5)*Seting!#REF!,\"\")","v":""},{"$f":"IFERROR(AVERAGEIFS(tblClassScores[Markah],tblClassScores[Kelas],Pengiraan!$C17,tblClassScores[Jenis],Pengiraan!AD$5)*Seting!#REF!,\"\")","v":""},{"$f":"IFERROR(AVERAGEIFS(tblClassScores[Markah],tblClassScores[Kelas],Pengiraan!$C17,tblClassScores[Jenis],Pengiraan!AE$5)*Seting!#REF!,\"\")","v":""},{"$f":"IFERROR(AVERAGEIFS(tblClassScores[Markah],tblClassScores[Kelas],Pengiraan!$C17,tblClassScores[Jenis],Pengiraan!AF$5)*Seting!#REF!,\"\")","v":""},{"$f":"IFERROR(AVERAGEIFS(tblClassScores[Markah],tblClassScores[Kelas],Pengiraan!$C17,tblClassScores[Jenis],Pengiraan!AG$5)*Seting!#REF!,\"\")","v":""},{"$f":"IFERROR(AVERAGEIFS(tblClassScores[Markah],tblClassScores[Kelas],Pengiraan!$C17,tblClassScores[Jenis],Pengiraan!AH$5)*Seting!#REF!,\"\")","v":""},{"$f":"IFERROR(AVERAGEIFS(tblClassScores[Markah],tblClassScores[Kelas],Pengiraan!$C17,tblClassScores[Jenis],Pengiraan!AI$5)*Seting!#REF!,\"\")","v":""},0,{"$f":"SUMIFS(Seting!E20:K20,Pengiraan!AC17:AI17,\">0\")","v":0},"","",""]
[null,null,{"$f":"IF(Seting!C21=\"\",\"\",Seting!C21)","v":""},"","","","","","","","","","","","","","","","","","","","","","","","","",{"$f":"IFERROR(AVERAGEIFS(tblClassScores[Markah],tblClassScores[Kelas],Pengiraan!$C18,tblClassScores[Jenis],Pengiraan!AC$5)*Seting!#REF!,\"\")","v":""},{"$f":"IFERROR(AVERAGEIFS(tblClassScores[Markah],tblClassScores[Kelas],Pengiraan!$C18,tblClassScores[Jenis],Pengiraan!AD$5)*Seting!#REF!,\"\")","v":""},{"$f":"IFERROR(AVERAGEIFS(tblClassScores[Markah],tblClassScores[Kelas],Pengiraan!$C18,tblClassScores[Jenis],Pengiraan!AE$5)*Seting!#REF!,\"\")","v":""},{"$f":"IFERROR(AVERAGEIFS(tblClassScores[Markah],tblClassScores[Kelas],Pengiraan!$C18,tblClassScores[Jenis],Pengiraan!AF$5)*Seting!#REF!,\"\")","v":""},{"$f":"IFERROR(AVERAGEIFS(tblClassScores[Markah],tblClassScores[Kelas],Pengiraan!$C18,tblClassScores[Jenis],Pengiraan!AG$5)*Seting!#REF!,\"\")","v":""},{"$f":"IFERROR(AVERAGEIFS(tblClassScores[Markah],tblClassScores[Kelas],Pengiraan!$C18,tblClassScores[Jenis],Pengiraan!AH$5)*Seting!#REF!,\"\")","v":""},{"$f":"IFERROR(AVERAGEIFS(tblClassScores[Markah],tblClassScores[Kelas],Pengiraan!$C18,tblClassScores[Jenis],Pengiraan!AI$5)*Seting!#REF!,\"\")","v":""},0,{"$f":"SUMIFS(Seting!E21:K21,Pengiraan!AC18:AI18,\">0\")","v":0},"","",""]
[null,null,{"$f":"IF(Seting!C22=\"\",\"\",Seting!C22)","v":""},"","","","","","","","","","","","","","","","","","","","","","","","","",{"$f":"IFERROR(AVERAGEIFS(tblClassScores[Markah],tblClassScores[Kelas],Pengiraan!$C19,tblClassScores[Jenis],Pengiraan!AC$5)*Seting!#REF!,\"\")","v":""},{"$f":"IFERROR(AVERAGEIFS(tblClassScores[Markah],tblClassScores[Kelas],Pengiraan!$C19,tblClassScores[Jenis],Pengiraan!AD$5)*Seting!#REF!,\"\")","v":""},{"$f":"IFERROR(AVERAGEIFS(tblClassScores[Markah],tblClassScores[Kelas],Pengiraan!$C19,tblClassScores[Jenis],Pengiraan!AE$5)*Seting!#REF!,\"\")","v":""},{"$f":"IFERROR(AVERAGEIFS(tblClassScores[Markah],tblClassScores[Kelas],Pengiraan!$C19,tblClassScores[Jenis],Pengiraan!AF$5)*Seting!#REF!,\"\")","v":""},{"$f":"IFERROR(AVERAGEIFS(tblClassScores[Markah],tblClassScores[Kelas],Pengiraan!$C19,tblClassScores[Jenis],Pengiraan!AG$5)*Seting!#REF!,\"\")","v":""},{"$f":"IFERROR(AVERAGEIFS(tblClassScores[Markah],tblClassScores[Kelas],Pengiraan!$C19,tblClassScores[Jenis],Pengiraan!AH$5)*Seting!#REF!,\"\")","v":""},{"$f":"IFERROR(AVERAGEIFS(tblClassScores[Markah],tblClassScores[Kelas],Pengiraan!$C19,tblClassScores[Jenis],Pengiraan!AI$5)*Seting!#REF!,\"\")","v":""},0,{"$f":"SUMIFS(Seting!E22:K22,Pengiraan!AC19:AI19,\">0\")","v":0},"","",""]
[null,null,{"$f":"IF(Seting!C23=\"\",\"\",Seting!C23)","v":""},"","","","","","","","","","","","","","","","","","","","","","","","","",{"$f":"IFERROR(AVERAGEIFS(tblClassScores[Markah],tblClassScores[Kelas],Pengiraan!$C20,tblClassScores[Jenis],Pengiraan!AC$5)*Seting!#REF!,\"\")","v":""},{"$f":"IFERROR(AVERAGEIFS(tblClassScores[Markah],tblClassScores[Kelas],Pengiraan!$C20,tblClassScores[Jenis],Pengiraan!AD$5)*Seting!#REF!,\"\")","v":""},{"$f":"IFERROR(AVERAGEIFS(tblClassScores[Markah],tblClassScores[Kelas],Pengiraan!$C20,tblClassScores[Jenis],Pengiraan!AE$5)*Seting!#REF!,\"\")","v":""},{"$f":"IFERROR(AVERAGEIFS(tblClassScores[Markah],tblClassScores[Kelas],Pengiraan!$C20,tblClassScores[Jenis],Pengiraan!AF$5)*Seting!#REF!,\"\")","v":""},{"$f":"IFERROR(AVERAGEIFS(tblClassScores[Markah],tblClassScores[Kelas],Pengiraan!$C20,tblClassScores[Jenis],Pengiraan!AG$5)*Seting!#REF!,\"\")","v":""},{"$f":"IFERROR(AVERAGEIFS(tblClassScores[Markah],tblClassScores[Kelas],Pengiraan!$C20,tblClassScores[Jenis],Pengiraan!AH$5)*Seting!#REF!,\"\")","v":""},{"$f":"IFERROR(AVERAGEIFS(tblClassScores[Markah],tblClassScores[Kelas],Pengiraan!$C20,tblClassScores[Jenis],Pengiraan!AI$5)*Seting!#REF!,\"\")","v":""},0,{"$f":"SUMIFS(Seting!E23:K23,Pengiraan!AC20:AI20,\">0\")","v":0},"","",""]
[null,null,{"$f":"IF(Seting!C24=\"\",\"\",Seting!C24)","v":""},"","","","","","","","","","","","","","","","","","","","","","","","","",{"$f":"IFERROR(AVERAGEIFS(tblClassScores[Markah],tblClassScores[Kelas],Pengiraan!$C21,tblClassScores[Jenis],Pengiraan!AC$5)*Seting!#REF!,\"\")","v":""},{"$f":"IFERROR(AVERAGEIFS(tblClassScores[Markah],tblClassScores[Kelas],Pengiraan!$C21,tblClassScores[Jenis],Pengiraan!AD$5)*Seting!#REF!,\"\")","v":""},{"$f":"IFERROR(AVERAGEIFS(tblClassScores[Markah],tblClassScores[Kelas],Pengiraan!$C21,tblClassScores[Jenis],Pengiraan!AE$5)*Seting!#REF!,\"\")","v":""},{"$f":"IFERROR(AVERAGEIFS(tblClassScores[Markah],tblClassScores[Kelas],Pengiraan!$C21,tblClassScores[Jenis],Pengiraan!AF$5)*Seting!#REF!,\"\")","v":""},{"$f":"IFERROR(AVERAGEIFS(tblClassScores[Markah],tblClassScores[Kelas],Pengiraan!$C21,tblClassScores[Jenis],Pengiraan!AG$5)*Seting!#REF!,\"\")","v":""},{"$f":"IFERROR(AVERAGEIFS(tblClassScores[Markah],tblClassScores[Kelas],Pengiraan!$C21,tblClassScores[Jenis],Pengiraan!AH$5)*Seting!#REF!,\"\")","v":""},{"$f":"IFERROR(AVERAGEIFS(tblClassScores[Markah],tblClassScores[Kelas],Pengiraan!$C21,tblClassScores[Jenis],Pengiraan!AI$5)*Seting!#REF!,\"\")","v":""},0,{"$f":"SUMIFS(Seting!E24:K24,Pengiraan!AC21:AI21,\">0\")","v":0},"","",""]
[null,null,{"$f":"IF(Seting!C25=\"\",\"\",Seting!C25)","v":""},"","","","","","","","","","","","","","","","","","","","","","","","","",{"$f":"IFERROR(AVERAGEIFS(tblClassScores[Markah],tblClassScores[Kelas],Pengiraan!$C22,tblClassScores[Jenis],Pengiraan!AC$5)*Seting!#REF!,\"\")","v":""},{"$f":"IFERROR(AVERAGEIFS(tblClassScores[Markah],tblClassScores[Kelas],Pengiraan!$C22,tblClassScores[Jenis],Pengiraan!AD$5)*Seting!#REF!,\"\")","v":""},{"$f":"IFERROR(AVERAGEIFS(tblClassScores[Markah],tblClassScores[Kelas],Pengiraan!$C22,tblClassScores[Jenis],Pengiraan!AE$5)*Seting!#REF!,\"\")","v":""},{"$f":"IFERROR(AVERAGEIFS(tblClassScores[Markah],tblClassScores[Kelas],Pengiraan!$C22,tblClassScores[Jenis],Pengiraan!AF$5)*Seting!#REF!,\"\")","v":""},{"$f":"IFERROR(AVERAGEIFS(tblClassScores[Markah],tblClassScores[Kelas],Pengiraan!$C22,tblClassScores[Jenis],Pengiraan!AG$5)*Seting!#REF!,\"\")","v":""},{"$f":"IFERROR(AVERAGEIFS(tblClassScores[Markah],tblClassScores[Kelas],Pengiraan!$C22,tblClassScores[Jenis],Pengiraan!AH$5)*Seting!#REF!,\"\")","v":""},{"$f":"IFERROR(AVERAGEIFS(tblClassScores[Markah],tblClassScores[Kelas],Pengiraan!$C22,tblClassScores[Jenis],Pengiraan!AI$5)*Seting!#REF!,\"\")","v":""},0,{"$f":"SUMIFS(Seting!E25:K25,Pengiraan!AC22:AI22,\">0\")","v":0},"","",""]
[null,null,{"$f":"IF(Seting!C26=\"\",\"\",Seting!C26)","v":""},"","","","","","","","","","","","","","","","","","","","","","","","","",{"$f":"IFERROR(AVERAGEIFS(tblClassScores[Markah],tblClassScores[Kelas],Pengiraan!$C23,tblClassScores[Jenis],Pengiraan!AC$5)*Seting!#REF!,\"\")","v":""},{"$f":"IFERROR(AVERAGEIFS(tblClassScores[Markah],tblClassScores[Kelas],Pengiraan!$C23,tblClassScores[Jenis],Pengiraan!AD$5)*Seting!#REF!,\"\")","v":""},{"$f":"IFERROR(AVERAGEIFS(tblClassScores[Markah],tblClassScores[Kelas],Pengiraan!$C23,tblClassScores[Jenis],Pengiraan!AE$5)*Seting!#REF!,\"\")","v":""},{"$f":"IFERROR(AVERAGEIFS(tblClassScores[Markah],tblClassScores[Kelas],Pengiraan!$C23,tblClassScores[Jenis],Pengiraan!AF$5)*Seting!#REF!,\"\")","v":""},{"$f":"IFERROR(AVERAGEIFS(tblClassScores[Markah],tblClassScores[Kelas],Pengiraan!$C23,tblClassScores[Jenis],Pengiraan!AG$5)*Seting!#REF!,\"\")","v":""},{"$f":"IFERROR(AVERAGEIFS(tblClassScores[Markah],tblClassScores[Kelas],Pengiraan!$C23,tblClassScores[Jenis],Pengiraan!AH$5)*Seting!#REF!,\"\")","v":""},{"$f":"IFERROR(AVERAGEIFS(tblClassScores[Markah],tblClassScores[Kelas],Pengiraan!$C23,tblClassScores[Jenis],Pengiraan!AI$5)*Seting!#REF!,\"\")","v":""},0,{"$f":"SUMIFS(Seting!E26:K26,Pengiraan!AC23:AI23,\">0\")","v":0},"","",""]
[null,null,{"$f":"IF(Seting!C27=\"\",\"\",Seting!C27)","v":""},"","","","","","","","","","","","","","","","","","","","","","","","","",{"$f":"IFERROR(AVERAGEIFS(tblClassScores[Markah],tblClassScores[Kelas],Pengiraan!$C24,tblClassScores[Jenis],Pengiraan!AC$5)*Seting!#REF!,\"\")","v":""},{"$f":"IFERROR(AVERAGEIFS(tblClassScores[Markah],tblClassScores[Kelas],Pengiraan!$C24,tblClassScores[Jenis],Pengiraan!AD$5)*Seting!#REF!,\"\")","v":""},{"$f":"IFERROR(AVERAGEIFS(tblClassScores[Markah],tblClassScores[Kelas],Pengiraan!$C24,tblClassScores[Jenis],Pengiraan!AE$5)*Seting!#REF!,\"\")","v":""},{"$f":"IFERROR(AVERAGEIFS(tblClassScores[Markah],tblClassScores[Kelas],Pengiraan!$C24,tblClassScores[Jenis],Pengiraan!AF$5)*Seting!#REF!,\"\")","v":""},{"$f":"IFERROR(AVERAGEIFS(tblClassScores[Markah],tblClassScores[Kelas],Pengiraan!$C24,tblClassScores[Jenis],Pengiraan!AG$5)*Seting!#REF!,\"\")","v":""},{"$f":"IFERROR(AVERAGEIFS(tblClassScores[Markah],tblClassScores[Kelas],Pengiraan!$C24,tblClassScores[Jenis],Pengiraan!AH$5)*Seting!#REF!,\"\")","v":""},{"$f":"IFERROR(AVERAGEIFS(tblClassScores[Markah],tblClassScores[Kelas],Pengiraan!$C24,tblClassScores[Jenis],Pengiraan!AI$5)*Seting!#REF!,\"\")","v":""},0,{"$f":"SUMIFS(Seting!E27:K27,Pengiraan!AC24:AI24,\">0\")","v":0},"","",""]
[null,null,{"$f":"IF(Seting!C28=\"\",\"\",Seting!C28)","v":""},"","","","","","","","","","","","","","","","","","","","","","","","","",{"$f":"IFERROR(AVERAGEIFS(tblClassScores[Markah],tblClassScores[Kelas],Pengiraan!$C25,tblClassScores[Jenis],Pengiraan!AC$5)*Seting!#REF!,\"\")","v":""},{"$f":"IFERROR(AVERAGEIFS(tblClassScores[Markah],tblClassScores[Kelas],Pengiraan!$C25,tblClassScores[Jenis],Pengiraan!AD$5)*Seting!#REF!,\"\")","v":""},{"$f":"IFERROR(AVERAGEIFS(tblClassScores[Markah],tblClassScores[Kelas],Pengiraan!$C25,tblClassScores[Jenis],Pengiraan!AE$5)*Seting!#REF!,\"\")","v":""},{"$f":"IFERROR(AVERAGEIFS(tblClassScores[Markah],tblClassScores[Kelas],Pengiraan!$C25,tblClassScores[Jenis],Pengiraan!AF$5)*Seting!#REF!,\"\")","v":""},{"$f":"IFERROR(AVERAGEIFS(tblClassScores[Markah],tblClassScores[Kelas],Pengiraan!$C25,tblClassScores[Jenis],Pengiraan!AG$5)*Seting!#REF!,\"\")","v":""},{"$f":"IFERROR(AVERAGEIFS(tblClassScores[Markah],tblClassScores[Kelas],Pengiraan!$C25,tblClassScores[Jenis],Pengiraan!AH$5)*Seting!#REF!,\"\")","v":""},{"$f":"IFERROR(AVERAGEIFS(tblClassScores[Markah],tblClassScores[Kelas],Pengiraan!$C25,tblClassScores[Jenis],Pengiraan!AI$5)*Seting!#REF!,\"\")","v":""},0,{"$f":"SUMIFS(Seting!E28:K28,Pengiraan!AC25:AI25,\">0\")","v":0},"","",""]
[null,null,{"$f":"IF(Seting!C29=\"\",\"\",Seting!C29)","v":""},"","","","","","","","","","","","","","","","","","","","","","","","","",{"$f":"IFERROR(AVERAGEIFS(tblClassScores[Markah],tblClassScores[Kelas],Pengiraan!$C26,tblClassScores[Jenis],Pengiraan!AC$5)*Seting!#REF!,\"\")","v":""},{"$f":"IFERROR(AVERAGEIFS(tblClassScores[Markah],tblClassScores[Kelas],Pengiraan!$C26,tblClassScores[Jenis],Pengiraan!AD$5)*Seting!#REF!,\"\")","v":""},{"$f":"IFERROR(AVERAGEIFS(tblClassScores[Markah],tblClassScores[Kelas],Pengiraan!$C26,tblClassScores[Jenis],Pengiraan!AE$5)*Seting!#REF!,\"\")","v":""},{"$f":"IFERROR(AVERAGEIFS(tblClassScores[Markah],tblClassScores[Kelas],Pengiraan!$C26,tblClassScores[Jenis],Pengiraan!AF$5)*Seting!#REF!,\"\")","v":""},{"$f":"IFERROR(AVERAGEIFS(tblClassScores[Markah],tblClassScores[Kelas],Pengiraan!$C26,tblClassScores[Jenis],Pengiraan!AG$5)*Seting!#REF!,\"\")","v":""},{"$f":"IFERROR(AVERAGEIFS(tblClassScores[Markah],tblClassScores[Kelas],Pengiraan!$C26,tblClassScores[Jenis],Pengiraan!AH$5)*Seting!#REF!,\"\")","v":""},{"$f":"IFERROR(AVERAGEIFS(tblClassScores[Markah],tblClassScores[Kelas],Pengiraan!$C26,tblClassScores[Jenis],Pengiraan!AI$5)*Seting!#REF!,\"\")","v":""},0,{"$f":"SUMIFS(Seting!E29:K29,Pengiraan!AC26:AI26,\">0\")","v":0},"","",""]
[null,null,{"$f":"IF(Seting!C30=\"\",\"\",Seting!C30)","v":""},"","","","","","","","","","","","","","","","","","","","","","","","","",{"$f":"IFERROR(AVERAGEIFS(tblClassScores[Markah],tblClassScores[Kelas],Pengiraan!$C27,tblClassScores[Jenis],Pengiraan!AC$5)*Seting!#REF!,\"\")","v":""},{"$f":"IFERROR(AVERAGEIFS(tblClassScores[Markah],tblClassScores[Kelas],Pengiraan!$C27,tblClassScores[Jenis],Pengiraan!AD$5)*Seting!#REF!,\"\")","v":""},{"$f":"IFERROR(AVERAGEIFS(tblClassScores[Markah],tblClassScores[Kelas],Pengiraan!$C27,tblClassScores[Jenis],Pengiraan!AE$5)*Seting!#REF!,\"\")","v":""},{"$f":"IFERROR(AVERAGEIFS(tblClassScores[Markah],tblClassScores[Kelas],Pengiraan!$C27,tblClassScores[Jenis],Pengiraan!AF$5)*Seting!#REF!,\"\")","v":""},{"$f":"IFERROR(AVERAGEIFS(tblClassScores[Markah],tblClassScores[Kelas],Pengiraan!$C27,tblClassScores[Jenis],Pengiraan!AG$5)*Seting!#REF!,\"\")","v":""},{"$f":"IFERROR(AVERAGEIFS(tblClassScores[Markah],tblClassScores[Kelas],Pengiraan!$C27,tblClassScores[Jenis],Pengiraan!AH$5)*Seting!#REF!,\"\")","v":""},{"$f":"IFERROR(AVERAGEIFS(tblClassScores[Markah],tblClassScores[Kelas],Pengiraan!$C27,tblClassScores[Jenis],Pengiraan!AI$5)*Seting!#REF!,\"\")","v":""},0,{"$f":"SUMIFS(Seting!E30:K30,Pengiraan!AC27:AI27,\">0\")","v":0},"","",""]
[null,null,{"$f":"IF(Seting!C31=\"\",\"\",Seting!C31)","v":""},"","","","","","","","","","","","","","","","","","","","","","","","","",{"$f":"IFERROR(AVERAGEIFS(tblClassScores[Markah],tblClassScores[Kelas],Pengiraan!$C28,tblClassScores[Jenis],Pengiraan!AC$5)*Seting!#REF!,\"\")","v":""},{"$f":"IFERROR(AVERAGEIFS(tblClassScores[Markah],tblClassScores[Kelas],Pengiraan!$C28,tblClassScores[Jenis],Pengiraan!AD$5)*Seting!#REF!,\"\")","v":""},{"$f":"IFERROR(AVERAGEIFS(tblClassScores[Markah],tblClassScores[Kelas],Pengiraan!$C28,tblClassScores[Jenis],Pengiraan!AE$5)*Seting!#REF!,\"\")","v":""},{"$f":"IFERROR(AVERAGEIFS(tblClassScores[Markah],tblClassScores[Kelas],Pengiraan!$C28,tblClassScores[Jenis],Pengiraan!AF$5)*Seting!#REF!,\"\")","v":""},{"$f":"IFERROR(AVERAGEIFS(tblClassScores[Markah],tblClassScores[Kelas],Pengiraan!$C28,tblClassScores[Jenis],Pengiraan!AG$5)*Seting!#REF!,\"\")","v":""},{"$f":"IFERROR(AVERAGEIFS(tblClassScores[Markah],tblClassScores[Kelas],Pengiraan!$C28,tblClassScores[Jenis],Pengiraan!AH$5)*Seting!#REF!,\"\")","v":""},{"$f":"IFERROR(AVERAGEIFS(tblClassScores[Markah],tblClassScores[Kelas],Pengiraan!$C28,tblClassScores[Jenis],Pengiraan!AI$5)*Seting!#REF!,\"\")","v":""},0,{"$f":"SUMIFS(Seting!E31:K31,Pengiraan!AC28:AI28,\">0\")","v":0},"","",""]
[null,null,{"$f":"IF(Seting!C32=\"\",\"\",Seting!C32)","v":""},"","","","","","","","","","","","","","","","","","","","","","","","","",{"$f":"IFERROR(AVERAGEIFS(tblClassScores[Markah],tblClassScores[Kelas],Pengiraan!$C29,tblClassScores[Jenis],Pengiraan!AC$5)*Seting!#REF!,\"\")","v":""},{"$f":"IFERROR(AVERAGEIFS(tblClassScores[Markah],tblClassScores[Kelas],Pengiraan!$C29,tblClassScores[Jenis],Pengiraan!AD$5)*Seting!#REF!,\"\")","v":""},{"$f":"IFERROR(AVERAGEIFS(tblClassScores[Markah],tblClassScores[Kelas],Pengiraan!$C29,tblClassScores[Jenis],Pengiraan!AE$5)*Seting!#REF!,\"\")","v":""},{"$f":"IFERROR(AVERAGEIFS(tblClassScores[Markah],tblClassScores[Kelas],Pengiraan!$C29,tblClassScores[Jenis],Pengiraan!AF$5)*Seting!#REF!,\"\")","v":""},{"$f":"IFERROR(AVERAGEIFS(tblClassScores[Markah],tblClassScores[Kelas],Pengiraan!$C29,tblClassScores[Jenis],Pengiraan!AG$5)*Seting!#REF!,\"\")","v":""},{"$f":"IFERROR(AVERAGEIFS(tblClassScores[Markah],tblClassScores[Kelas],Pengiraan!$C29,tblClassScores[Jenis],Pengiraan!AH$5)*Seting!#REF!,\"\")","v":""},{"$f":"IFERROR(AVERAGEIFS(tblClassScores[Markah],tblClassScores[Kelas],Pengiraan!$C29,tblClassScores[Jenis],Pengiraan!AI$5)*Seting!#REF!,\"\")","v":""},0,{"$f":"SUMIFS(Seting!E32:K32,Pengiraan!AC29:AI29,\">0\")","v":0},"","",""]
[null,null,{"$f":"IF(Seting!C33=\"\",\"\",Seting!C33)","v":""},"","","","","","","","","","","","","","","","","","","","","","","","","",{"$f":"IFERROR(AVERAGEIFS(tblClassScores[Markah],tblClassScores[Kelas],Pengiraan!$C30,tblClassScores[Jenis],Pengiraan!AC$5)*Seting!#REF!,\"\")","v":""},{"$f":"IFERROR(AVERAGEIFS(tblClassScores[Markah],tblClassScores[Kelas],Pengiraan!$C30,tblClassScores[Jenis],Pengiraan!AD$5)*Seting!#REF!,\"\")","v":""},{"$f":"IFERROR(AVERAGEIFS(tblClassScores[Markah],tblClassScores[Kelas],Pengiraan!$C30,tblClassScores[Jenis],Pengiraan!AE$5)*Seting!#REF!,\"\")","v":""},{"$f":"IFERROR(AVERAGEIFS(tblClassScores[Markah],tblClassScores[Kelas],Pengiraan!$C30,tblClassScores[Jenis],Pengiraan!AF$5)*Seting!#REF!,\"\")","v":""},{"$f":"IFERROR(AVERAGEIFS(tblClassScores[Markah],tblClassScores[Kelas],Pengiraan!$C30,tblClassScores[Jenis],Pengiraan!AG$5)*Seting!#REF!,\"\")","v":""},{"$f":"IFERROR(AVERAGEIFS(tblClassScores[Markah],tblClassScores[Kelas],Pengiraan!$C30,tblClassScores[Jenis],Pengiraan!AH$5)*Seting!#REF!,\"\")","v":""},{"$f":"IFERROR(AVERAGEIFS(tblClassScores[Markah],tblClassScores[Kelas],Pengiraan!$C30,tblClassScores[Jenis],Pengiraan!AI$5)*Seting!#REF!,\"\")","v":""},0,{"$f":"SUMIFS(Seting!E33:K33,Pengiraan!AC30:AI30,\">0\")","v":0},"","",""]
[]
[]
[null,1,{"$f":"'Penjejak Markah'!C4&COUNTIF('Penjejak Markah'!$C$4:C4,'Penjejak Markah'!C4)","v":"Bahasa Perancis Moden1"}]
[null,2,{"$f":"'Penjejak Markah'!C5&COUNTIF('Penjejak Markah'!$C$4:C5,'Penjejak Markah'!C5)","v":"Pemprograman Lanjutan dalam Java1"}]
[null,3,{"$f":"'Penjejak Markah'!C6&COUNTIF('Penjejak Markah'!$C$4:C6,'Penjejak Markah'!C6)","v":"Bahasa Sepanyol1"}]
[null,4,{"$f":"'Penjejak Markah'!C7&COUNTIF('Penjejak Markah'!$C$4:C7,'Penjejak Markah'!C7)","v":"Ilmu Fizik Teori1"}]
[null,5,{"$f":"'Penjejak Markah'!C8&COUNTIF('Penjejak Markah'!$C$4:C8,'Penjejak Markah'!C8)","v":"Bahasa Perancis Moden2"}]
[null,6,{"$f":"'Penjejak Markah'!C9&COUNTIF('Penjejak Markah'!$C$4:C9,'Penjejak Markah'!C9)","v":"Bahasa Perancis Moden3"}]
[null,7,{"$f":"'Penjejak Markah'!C10&COUNTIF('Penjejak Markah'!$C$4:C10,'Penjejak Markah'!C10)","v":"Mengarang1"}]
[null,8,{"$f":"'Penjejak Markah'!C11&COUNTIF('Penjejak Markah'!$C$4:C11,'Penjejak Markah'!C11)","v":"Matematik 11"}]
[null,9,{"$f":"'Penjejak Markah'!C12&COUNTIF('Penjejak Markah'!$C$4:C12,'Penjejak Markah'!C12)","v":"Matematik 21"}]
[null,10,{"$f":"'Penjejak Markah'!C13&COUNTIF('Penjejak Markah'!$C$4:C14,'Penjejak Markah'!C13)","v":"Matematik 12"}]
[null,11,{"$f":"'Penjejak Markah'!C14&COUNTIF('Penjejak Markah'!$C$4:C14,'Penjejak Markah'!C14)","v":"Matematik 22"}]
[null,12,{"$f":"'Penjejak Markah'!C15&COUNTIF('Penjejak Markah'!$C$4:C15,'Penjejak Markah'!C15)","v":"0"}]
[null,13,{"$f":"'Penjejak Markah'!C16&COUNTIF('Penjejak Markah'!$C$4:C16,'Penjejak Markah'!C16)","v":"0"}]
[null,14,{"$f":"'Penjejak Markah'!C17&COUNTIF('Penjejak Markah'!$C$4:C17,'Penjejak Markah'!C17)","v":"0"}]
[null,15,{"$f":"'Penjejak Markah'!C18&COUNTIF('Penjejak Markah'!$C$4:C18,'Penjejak Markah'!C18)","v":"0"}]
[null,16,{"$f":"'Penjejak Markah'!C19&COUNTIF('Penjejak Markah'!$C$4:C19,'Penjejak Markah'!C19)","v":"0"}]
[null,17,{"$f":"'Penjejak Markah'!C20&COUNTIF('Penjejak Markah'!$C$4:C20,'Penjejak Markah'!C20)","v":"0"}]
[null,18,{"$f":"'Penjejak Markah'!C21&COUNTIF('Penjejak Markah'!$C$4:C21,'Penjejak Markah'!C21)","v":"0"}]
[null,19,{"$f":"'Penjejak Markah'!C22&COUNTIF('Penjejak Markah'!$C$4:C22,'Penjejak Markah'!C22)","v":"0"}]
[null,20,{"$f":"'Penjejak Markah'!C23&COUNTIF('Penjejak Markah'!$C$4:C23,'Penjejak Markah'!C23)","v":"0"}]
[null,21,{"$f":"'Penjejak Markah'!C24&COUNTIF('Penjejak Markah'!$C$4:C24,'Penjejak Markah'!C24)","v":"0"}]
[null,22,{"$f":"'Penjejak Markah'!C25&COUNTIF('Penjejak Markah'!$C$4:C25,'Penjejak Markah'!C25)","v":"0"}]
[null,23,{"$f":"'Penjejak Markah'!C26&COUNTIF('Penjejak Markah'!$C$4:C26,'Penjejak Markah'!C26)","v":"0"}]
[null,24,{"$f":"'Penjejak Markah'!C27&COUNTIF('Penjejak Markah'!$C$4:C27,'Penjejak Markah'!C27)","v":"0"}]
[null,25,{"$f":"'Penjejak Markah'!C28&COUNTIF('Penjejak Markah'!$C$4:C28,'Penjejak Markah'!C28)","v":"0"}]
[null,26,{"$f":"'Penjejak Markah'!C29&COUNTIF('Penjejak Markah'!$C$4:C29,'Penjejak Markah'!C29)","v":"0"}]
[null,27,{"$f":"'Penjejak Markah'!C30&COUNTIF('Penjejak Markah'!$C$4:C30,'Penjejak Markah'!C30)","v":"0"}]
[null,28,{"$f":"'Penjejak Markah'!C31&COUNTIF('Penjejak Markah'!$C$4:C31,'Penjejak Markah'!C31)","v":"0"}]
[null,29,{"$f":"'Penjejak Markah'!C32&COUNTIF('Penjejak Markah'!$C$4:C32,'Penjejak Markah'!C32)","v":"0"}]
[null,30,{"$f":"'Penjejak Markah'!C33&COUNTIF('Penjejak Markah'!$C$4:C33,'Penjejak Markah'!C33)","v":"0"}]
[null,31,{"$f":"'Penjejak Markah'!C34&COUNTIF('Penjejak Markah'!$C$4:C34,'Penjejak Markah'!C34)","v":"0"}]
[null,32,{"$f":"'Penjejak Markah'!C35&COUNTIF('Penjejak Markah'!$C$4:C35,'Penjejak Markah'!C35)","v":"0"}]
[null,33,{"$f":"'Penjejak Markah'!C36&COUNTIF('Penjejak Markah'!$C$4:C36,'Penjejak Markah'!C36)","v":"0"}]
[null,34,{"$f":"'Penjejak Markah'!C37&COUNTIF('Penjejak Markah'!$C$4:C37,'Penjejak Markah'!C37)","v":"0"}]
[null,35,{"$f":"'Penjejak Markah'!C38&COUNTIF('Penjejak Markah'!$C$4:C38,'Penjejak Markah'!C38)","v":"0"}]
[null,36,{"$f":"'Penjejak Markah'!C39&COUNTIF('Penjejak Markah'!$C$4:C39,'Penjejak Markah'!C39)","v":"0"}]
[null,37,{"$f":"'Penjejak Markah'!C40&COUNTIF('Penjejak Markah'!$C$4:C40,'Penjejak Markah'!C40)","v":"0"}]
[null,38,{"$f":"'Penjejak Markah'!C41&COUNTIF('Penjejak Markah'!$C$4:C41,'Penjejak Markah'!C41)","v":"0"}]
[null,39,{"$f":"'Penjejak Markah'!C42&COUNTIF('Penjejak Markah'!$C$4:C42,'Penjejak Markah'!C42)","v":"0"}]
[null,40,{"$f":"'Penjejak Markah'!C43&COUNTIF('Penjejak Markah'!$C$4:C43,'Penjejak Markah'!C43)","v":"0"}]
[null,41,{"$f":"'Penjejak Markah'!C44&COUNTIF('Penjejak Markah'!$C$4:C44,'Penjejak Markah'!C44)","v":"0"}]
[null,42,{"$f":"'Penjejak Markah'!C45&COUNTIF('Penjejak Markah'!$C$4:C45,'Penjejak Markah'!C45)","v":"0"}]
[null,43,{"$f":"'Penjejak Markah'!C46&COUNTIF('Penjejak Markah'!$C$4:C46,'Penjejak Markah'!C46)","v":"0"}]
[null,44,{"$f":"'Penjejak Markah'!C47&COUNTIF('Penjejak Markah'!$C$4:C47,'Penjejak Markah'!C47)","v":"0"}]
[null,45,{"$f":"'Penjejak Markah'!C48&COUNTIF('Penjejak Markah'!$C$4:C48,'Penjejak Markah'!C48)","v":"0"}]
[null,46,{"$f":"'Penjejak Markah'!C49&COUNTIF('Penjejak Markah'!$C$4:C49,'Penjejak Markah'!C49)","v":"0"}]
[null,47,{"$f":"'Penjejak Markah'!C50&COUNTIF('Penjejak Markah'!$C$4:C50,'Penjejak Markah'!C50)","v":"0"}]
[null,48,{"$f":"'Penjejak Markah'!C51&COUNTIF('Penjejak Markah'!$C$4:C51,'Penjejak Markah'!C51)","v":"0"}]
[null,49,{"$f":"'Penjejak Markah'!C52&COUNTIF('Penjejak Markah'!$C$4:C52,'Penjejak Markah'!C52)","v":"0"}]
[null,50,{"$f":"'Penjejak Markah'!C53&COUNTIF('Penjejak Markah'!$C$4:C53,'Penjejak Markah'!C53)","v":"0"}]
[null,51,{"$f":"'Penjejak Markah'!C54&COUNTIF('Penjejak Markah'!$C$4:C54,'Penjejak Markah'!C54)","v":"0"}]
[null,52,{"$f":"'Penjejak Markah'!C55&COUNTIF('Penjejak Markah'!$C$4:C55,'Penjejak Markah'!C55)","v":"0"}]
[null,53,{"$f":"'Penjejak Markah'!C56&COUNTIF('Penjejak Markah'!$C$4:C56,'Penjejak Markah'!C56)","v":"0"}]
[null,54,{"$f":"'Penjejak Markah'!C57&COUNTIF('Penjejak Markah'!$C$4:C57,'Penjejak Markah'!C57)","v":"0"}]
[null,55,{"$f":"'Penjejak Markah'!C58&COUNTIF('Penjejak Markah'!$C$4:C58,'Penjejak Markah'!C58)","v":"0"}]
[null,56,{"$f":"'Penjejak Markah'!C59&COUNTIF('Penjejak Markah'!$C$4:C59,'Penjejak Markah'!C59)","v":"0"}]
[null,57,{"$f":"'Penjejak Markah'!C60&COUNTIF('Penjejak Markah'!$C$4:C60,'Penjejak Markah'!C60)","v":"0"}]
[null,58,{"$f":"'Penjejak Markah'!C61&COUNTIF('Penjejak Markah'!$C$4:C61,'Penjejak Markah'!C61)","v":"0"}]
[null,59,{"$f":"'Penjejak Markah'!C62&COUNTIF('Penjejak Markah'!$C$4:C62,'Penjejak Markah'!C62)","v":"0"}]
[null,60,{"$f":"'Penjejak Markah'!C63&COUNTIF('Penjejak Markah'!$C$4:C63,'Penjejak Markah'!C63)","v":"0"}]
[null,61,{"$f":"'Penjejak Markah'!C64&COUNTIF('Penjejak Markah'!$C$4:C64,'Penjejak Markah'!C64)","v":"0"}]
[null,62,{"$f":"'Penjejak Markah'!C65&COUNTIF('Penjejak Markah'!$C$4:C65,'Penjejak Markah'!C65)","v":"0"}]
[null,63,{"$f":"'Penjejak Markah'!C66&COUNTIF('Penjejak Markah'!$C$4:C66,'Penjejak Markah'!C66)","v":"0"}]
[null,64,{"$f":"'Penjejak Markah'!C67&COUNTIF('Penjejak Markah'!$C$4:C67,'Penjejak Markah'!C67)","v":"0"}]
[null,65,{"$f":"'Penjejak Markah'!C68&COUNTIF('Penjejak Markah'!$C$4:C68,'Penjejak Markah'!C68)","v":"0"}]
[null,66,{"$f":"'Penjejak Markah'!C69&COUNTIF('Penjejak Markah'!$C$4:C69,'Penjejak Markah'!C69)","v":"0"}]
[null,67,{"$f":"'Penjejak Markah'!C70&COUNTIF('Penjejak Markah'!$C$4:C70,'Penjejak Markah'!C70)","v":"0"}]
[null,68,{"$f":"'Penjejak Markah'!C71&COUNTIF('Penjejak Markah'!$C$4:C71,'Penjejak Markah'!C71)","v":"0"}]
[null,69,{"$f":"'Penjejak Markah'!C72&COUNTIF('Penjejak Markah'!$C$4:C72,'Penjejak Markah'!C72)","v":"0"}]
[null,70,{"$f":"'Penjejak Markah'!C73&COUNTIF('Penjejak Markah'!$C$4:C73,'Penjejak Markah'!C73)","v":"0"}]
[null,71,{"$f":"'Penjejak Markah'!C74&COUNTIF('Penjejak Markah'!$C$4:C74,'Penjejak Markah'!C74)","v":"0"}]
[null,72,{"$f":"'Penjejak Markah'!C75&COUNTIF('Penjejak Markah'!$C$4:C75,'Penjejak Markah'!C75)","v":"0"}]
[null,73,{"$f":"'Penjejak Markah'!C76&COUNTIF('Penjejak Markah'!$C$4:C76,'Penjejak Markah'!C76)","v":"0"}]
[null,74,{"$f":"'Penjejak Markah'!C77&COUNTIF('Penjejak Markah'!$C$4:C77,'Penjejak Markah'!C77)","v":"0"}]
[null,75,{"$f":"'Penjejak Markah'!C78&COUNTIF('Penjejak Markah'!$C$4:C78,'Penjejak Markah'!C78)","v":"0"}]
[null,76,{"$f":"'Penjejak Markah'!C79&COUNTIF('Penjejak Markah'!$C$4:C79,'Penjejak Markah'!C79)","v":"0"}]
[null,77,{"$f":"'Penjejak Markah'!C80&COUNTIF('Penjejak Markah'!$C$4:C80,'Penjejak Markah'!C80)","v":"0"}]
[null,78,{"$f":"'Penjejak Markah'!C81&COUNTIF('Penjejak Markah'!$C$4:C81,'Penjejak Markah'!C81)","v":"0"}]
[null,79,{"$f":"'Penjejak Markah'!C82&COUNTIF('Penjejak Markah'!$C$4:C82,'Penjejak Markah'!C82)","v":"0"}]
[null,80,{"$f":"'Penjejak Markah'!C83&COUNTIF('Penjejak Markah'!$C$4:C83,'Penjejak Markah'!C83)","v":"0"}]
[null,81,{"$f":"'Penjejak Markah'!C84&COUNTIF('Penjejak Markah'!$C$4:C84,'Penjejak Markah'!C84)","v":"0"}]
[null,82,{"$f":"'Penjejak Markah'!C85&COUNTIF('Penjejak Markah'!$C$4:C85,'Penjejak Markah'!C85)","v":"0"}]
[null,83,{"$f":"'Penjejak Markah'!C86&COUNTIF('Penjejak Markah'!$C$4:C86,'Penjejak Markah'!C86)","v":"0"}]
[null,84,{"$f":"'Penjejak Markah'!C87&COUNTIF('Penjejak Markah'!$C$4:C87,'Penjejak Markah'!C87)","v":"0"}]
[null,85,{"$f":"'Penjejak Markah'!C88&COUNTIF('Penjejak Markah'!$C$4:C88,'Penjejak Markah'!C88)","v":"0"}]
[null,86,{"$f":"'Penjejak Markah'!C89&COUNTIF('Penjejak Markah'!$C$4:C89,'Penjejak Markah'!C89)","v":"0"}]
[null,87,{"$f":"'Penjejak Markah'!C90&COUNTIF('Penjejak Markah'!$C$4:C90,'Penjejak Markah'!C90)","v":"0"}]
[null,88,{"$f":"'Penjejak Markah'!C91&COUNTIF('Penjejak Markah'!$C$4:C91,'Penjejak Markah'!C91)","v":"0"}]
[null,89,{"$f":"'Penjejak Markah'!C92&COUNTIF('Penjejak Markah'!$C$4:C92,'Penjejak Markah'!C92)","v":"0"}]
[null,90,{"$f":"'Penjejak Markah'!C93&COUNTIF('Penjejak Markah'!$C$4:C93,'Penjejak Markah'!C93)","v":"0"}]
[null,91,{"$f":"'Penjejak Markah'!C94&COUNTIF('Penjejak Markah'!$C$4:C94,'Penjejak Markah'!C94)","v":"0"}]
[null,92,{"$f":"'Penjejak Markah'!C95&COUNTIF('Penjejak Markah'!$C$4:C95,'Penjejak Markah'!C95)","v":"0"}]
[null,93,{"$f":"'Penjejak Markah'!C96&COUNTIF('Penjejak Markah'!$C$4:C96,'Penjejak Markah'!C96)","v":"0"}]
[null,94,{"$f":"'Penjejak Markah'!C97&COUNTIF('Penjejak Markah'!$C$4:C97,'Penjejak Markah'!C97)","v":"0"}]
[null,95,{"$f":"'Penjejak Markah'!C98&COUNTIF('Penjejak Markah'!$C$4:C98,'Penjejak Markah'!C98)","v":"0"}]
[null,96,{"$f":"'Penjejak Markah'!C99&COUNTIF('Penjejak Markah'!$C$4:C99,'Penjejak Markah'!C99)","v":"0"}]
[null,97,{"$f":"'Penjejak Markah'!C100&COUNTIF('Penjejak Markah'!$C$4:C100,'Penjejak Markah'!C100)","v":"0"}]
[null,98,{"$f":"'Penjejak Markah'!C101&COUNTIF('Penjejak Markah'!$C$4:C101,'Penjejak Markah'!C101)","v":"0"}]
[null,99,{"$f":"'Penjejak Markah'!C102&COUNTIF('Penjejak Markah'!$C$4:C102,'Penjejak Markah'!C102)","v":"0"}]
[null,100,{"$f":"'Penjejak Markah'!C103&COUNTIF('Penjejak Markah'!$C$4:C103,'Penjejak Markah'!C103)","v":"0"}]
[null,101,{"$f":"'Penjejak Markah'!C104&COUNTIF('Penjejak Markah'!$C$4:C104,'Penjejak Markah'!C104)","v":"0"}]
[null,102,{"$f":"'Penjejak Markah'!C105&COUNTIF('Penjejak Markah'!$C$4:C105,'Penjejak Markah'!C105)","v":"0"}]
[null,103,{"$f":"'Penjejak Markah'!C106&COUNTIF('Penjejak Markah'!$C$4:C106,'Penjejak Markah'!C106)","v":"0"}]
[null,104,{"$f":"'Penjejak Markah'!C107&COUNTIF('Penjejak Markah'!$C$4:C107,'Penjejak Markah'!C107)","v":"0"}]
[null,105,{"$f":"'Penjejak Markah'!C108&COUNTIF('Penjejak Markah'!$C$4:C108,'Penjejak Markah'!C108)","v":"0"}]
[null,106,{"$f":"'Penjejak Markah'!C109&COUNTIF('Penjejak Markah'!$C$4:C109,'Penjejak Markah'!C109)","v":"0"}]
[null,107,{"$f":"'Penjejak Markah'!C110&COUNTIF('Penjejak Markah'!$C$4:C110,'Penjejak Markah'!C110)","v":"0"}]
[null,108,{"$f":"'Penjejak Markah'!C111&COUNTIF('Penjejak Markah'!$C$4:C111,'Penjejak Markah'!C111)","v":"0"}]
[null,109,{"$f":"'Penjejak Markah'!C112&COUNTIF('Penjejak Markah'!$C$4:C112,'Penjejak Markah'!C112)","v":"0"}]
[null,110,{"$f":"'Penjejak Markah'!C113&COUNTIF('Penjejak Markah'!$C$4:C113,'Penjejak Markah'!C113)","v":"0"}]
[null,111,{"$f":"'Penjejak Markah'!C114&COUNTIF('Penjejak Markah'!$C$4:C114,'Penjejak Markah'!C114)","v":"0"}]
[null,112,{"$f":"'Penjejak Markah'!C115&COUNTIF('Penjejak Markah'!$C$4:C115,'Penjejak Markah'!C115)","v":"0"}]
[null,113,{"$f":"'Penjejak Markah'!C116&COUNTIF('Penjejak Markah'!$C$4:C116,'Penjejak Markah'!C116)","v":"0"}]
[null,114,{"$f":"'Penjejak Markah'!C117&COUNTIF('Penjejak Markah'!$C$4:C117,'Penjejak Markah'!C117)","v":"0"}]
[null,115,{"$f":"'Penjejak Markah'!C118&COUNTIF('Penjejak Markah'!$C$4:C118,'Penjejak Markah'!C118)","v":"0"}]
[null,116,{"$f":"'Penjejak Markah'!C119&COUNTIF('Penjejak Markah'!$C$4:C119,'Penjejak Markah'!C119)","v":"0"}]
[null,117,{"$f":"'Penjejak Markah'!C120&COUNTIF('Penjejak Markah'!$C$4:C120,'Penjejak Markah'!C120)","v":"0"}]
[null,118,{"$f":"'Penjejak Markah'!C121&COUNTIF('Penjejak Markah'!$C$4:C121,'Penjejak Markah'!C121)","v":"0"}]
[null,119,{"$f":"'Penjejak Markah'!C122&COUNTIF('Penjejak Markah'!$C$4:C122,'Penjejak Markah'!C122)","v":"0"}]
[null,120,{"$f":"'Penjejak Markah'!C123&COUNTIF('Penjejak Markah'!$C$4:C123,'Penjejak Markah'!C123)","v":"0"}]
[null,121,{"$f":"'Penjejak Markah'!C124&COUNTIF('Penjejak Markah'!$C$4:C124,'Penjejak Markah'!C124)","v":"0"}]
[null,122,{"$f":"'Penjejak Markah'!C125&COUNTIF('Penjejak Markah'!$C$4:C125,'Penjejak Markah'!C125)","v":"0"}]
[null,123,{"$f":"'Penjejak Markah'!C126&COUNTIF('Penjejak Markah'!$C$4:C126,'Penjejak Markah'!C126)","v":"0"}]
[null,124,{"$f":"'Penjejak Markah'!C127&COUNTIF('Penjejak Markah'!$C$4:C127,'Penjejak Markah'!C127)","v":"0"}]
[null,125,{"$f":"'Penjejak Markah'!C128&COUNTIF('Penjejak Markah'!$C$4:C128,'Penjejak Markah'!C128)","v":"0"}]
[null,126,{"$f":"'Penjejak Markah'!C129&COUNTIF('Penjejak Markah'!$C$4:C129,'Penjejak Markah'!C129)","v":"0"}]
[null,127,{"$f":"'Penjejak Markah'!C130&COUNTIF('Penjejak Markah'!$C$4:C130,'Penjejak Markah'!C130)","v":"0"}]
[null,128,{"$f":"'Penjejak Markah'!C131&COUNTIF('Penjejak Markah'!$C$4:C131,'Penjejak Markah'!C131)","v":"0"}]
[null,129,{"$f":"'Penjejak Markah'!C132&COUNTIF('Penjejak Markah'!$C$4:C132,'Penjejak Markah'!C132)","v":"0"}]
[null,130,{"$f":"'Penjejak Markah'!C133&COUNTIF('Penjejak Markah'!$C$4:C133,'Penjejak Markah'!C133)","v":"0"}]
[null,131,{"$f":"'Penjejak Markah'!C134&COUNTIF('Penjejak Markah'!$C$4:C134,'Penjejak Markah'!C134)","v":"0"}]
[null,132,{"$f":"'Penjejak Markah'!C135&COUNTIF('Penjejak Markah'!$C$4:C135,'Penjejak Markah'!C135)","v":"0"}]
[null,133,{"$f":"'Penjejak Markah'!C136&COUNTIF('Penjejak Markah'!$C$4:C136,'Penjejak Markah'!C136)","v":"0"}]
[null,134,{"$f":"'Penjejak Markah'!C137&COUNTIF('Penjejak Markah'!$C$4:C137,'Penjejak Markah'!C137)","v":"0"}]
[null,135,{"$f":"'Penjejak Markah'!C138&COUNTIF('Penjejak Markah'!$C$4:C138,'Penjejak Markah'!C138)","v":"0"}]
[null,136,{"$f":"'Penjejak Markah'!C139&COUNTIF('Penjejak Markah'!$C$4:C139,'Penjejak Markah'!C139)","v":"0"}]
[null,137,{"$f":"'Penjejak Markah'!C140&COUNTIF('Penjejak Markah'!$C$4:C140,'Penjejak Markah'!C140)","v":"0"}]
[null,138,{"$f":"'Penjejak Markah'!C141&COUNTIF('Penjejak Markah'!$C$4:C141,'Penjejak Markah'!C141)","v":"0"}]
[null,139,{"$f":"'Penjejak Markah'!C142&COUNTIF('Penjejak Markah'!$C$4:C142,'Penjejak Markah'!C142)","v":"0"}]
[null,140,{"$f":"'Penjejak Markah'!C143&COUNTIF('Penjejak Markah'!$C$4:C143,'Penjejak Markah'!C143)","v":"0"}]
[null,141,{"$f":"'Penjejak Markah'!C144&COUNTIF('Penjejak Markah'!$C$4:C144,'Penjejak Markah'!C144)","v":"0"}]
[null,142,{"$f":"'Penjejak Markah'!C145&COUNTIF('Penjejak Markah'!$C$4:C145,'Penjejak Markah'!C145)","v":"0"}]
[null,143,{"$f":"'Penjejak Markah'!C146&COUNTIF('Penjejak Markah'!$C$4:C146,'Penjejak Markah'!C146)","v":"0"}]
[null,144,{"$f":"'Penjejak Markah'!C147&COUNTIF('Penjejak Markah'!$C$4:C147,'Penjejak Markah'!C147)","v":"0"}]
[null,145,{"$f":"'Penjejak Markah'!C148&COUNTIF('Penjejak Markah'!$C$4:C148,'Penjejak Markah'!C148)","v":"0"}]
[null,146,{"$f":"'Penjejak Markah'!C149&COUNTIF('Penjejak Markah'!$C$4:C149,'Penjejak Markah'!C149)","v":"0"}]
[null,147,{"$f":"'Penjejak Markah'!C150&COUNTIF('Penjejak Markah'!$C$4:C150,'Penjejak Markah'!C150)","v":"0"}]
[null,148,{"$f":"'Penjejak Markah'!C151&COUNTIF('Penjejak Markah'!$C$4:C151,'Penjejak Markah'!C151)","v":"0"}]
[null,149,{"$f":"'Penjejak Markah'!C152&COUNTIF('Penjejak Markah'!$C$4:C152,'Penjejak Markah'!C152)","v":"0"}]
[null,150,{"$f":"'Penjejak Markah'!C153&COUNTIF('Penjejak Markah'!$C$4:C153,'Penjejak Markah'!C153)","v":"0"}]
[null,151,{"$f":"'Penjejak Markah'!C154&COUNTIF('Penjejak Markah'!$C$4:C154,'Penjejak Markah'!C154)","v":"0"}]
[null,152,{"$f":"'Penjejak Markah'!C155&COUNTIF('Penjejak Markah'!$C$4:C155,'Penjejak Markah'!C155)","v":"0"}]
[null,153,{"$f":"'Penjejak Markah'!C156&COUNTIF('Penjejak Markah'!$C$4:C156,'Penjejak Markah'!C156)","v":"0"}]
[null,154,{"$f":"'Penjejak Markah'!C157&COUNTIF('Penjejak Markah'!$C$4:C157,'Penjejak Markah'!C157)","v":"0"}]
[null,155,{"$f":"'Penjejak Markah'!C158&COUNTIF('Penjejak Markah'!$C$4:C158,'Penjejak Markah'!C158)","v":"0"}]
[null,156,{"$f":"'Penjejak Markah'!C159&COUNTIF('Penjejak Markah'!$C$4:C159,'Penjejak Markah'!C159)","v":"0"}]
[null,157,{"$f":"'Penjejak Markah'!C160&COUNTIF('Penjejak Markah'!$C$4:C160,'Penjejak Markah'!C160)","v":"0"}]
[null,158,{"$f":"'Penjejak Markah'!C161&COUNTIF('Penjejak Markah'!$C$4:C161,'Penjejak Markah'!C161)","v":"0"}]
[null,159,{"$f":"'Penjejak Markah'!C162&COUNTIF('Penjejak Markah'!$C$4:C162,'Penjejak Markah'!C162)","v":"0"}]
[null,160,{"$f":"'Penjejak Markah'!C163&COUNTIF('Penjejak Markah'!$C$4:C163,'Penjejak Markah'!C163)","v":"0"}]
[null,161,{"$f":"'Penjejak Markah'!C164&COUNTIF('Penjejak Markah'!$C$4:C164,'Penjejak Markah'!C164)","v":"0"}]
[null,162,{"$f":"'Penjejak Markah'!C165&COUNTIF('Penjejak Markah'!$C$4:C165,'Penjejak Markah'!C165)","v":"0"}]
[null,163,{"$f":"'Penjejak Markah'!C166&COUNTIF('Penjejak Markah'!$C$4:C166,'Penjejak Markah'!C166)","v":"0"}]
[null,164,{"$f":"'Penjejak Markah'!C167&COUNTIF('Penjejak Markah'!$C$4:C167,'Penjejak Markah'!C167)","v":"0"}]
[null,165,{"$f":"'Penjejak Markah'!C168&COUNTIF('Penjejak Markah'!$C$4:C168,'Penjejak Markah'!C168)","v":"0"}]
[null,166,{"$f":"'Penjejak Markah'!C169&COUNTIF('Penjejak Markah'!$C$4:C169,'Penjejak Markah'!C169)","v":"0"}]
[null,167,{"$f":"'Penjejak Markah'!C170&COUNTIF('Penjejak Markah'!$C$4:C170,'Penjejak Markah'!C170)","v":"0"}]
[null,168,{"$f":"'Penjejak Markah'!C171&COUNTIF('Penjejak Markah'!$C$4:C171,'Penjejak Markah'!C171)","v":"0"}]
[null,169,{"$f":"'Penjejak Markah'!C172&COUNTIF('Penjejak Markah'!$C$4:C172,'Penjejak Markah'!C172)","v":"0"}]
[null,170,{"$f":"'Penjejak Markah'!C173&COUNTIF('Penjejak Markah'!$C$4:C173,'Penjejak Markah'!C173)","v":"0"}]
[null,171,{"$f":"'Penjejak Markah'!C174&COUNTIF('Penjejak Markah'!$C$4:C174,'Penjejak Markah'!C174)","v":"0"}]
[null,172,{"$f":"'Penjejak Markah'!C175&COUNTIF('Penjejak Markah'!$C$4:C175,'Penjejak Markah'!C175)","v":"0"}]
[null,173,{"$f":"'Penjejak Markah'!C176&COUNTIF('Penjejak Markah'!$C$4:C176,'Penjejak Markah'!C176)","v":"0"}]
[null,174,{"$f":"'Penjejak Markah'!C177&COUNTIF('Penjejak Markah'!$C$4:C177,'Penjejak Markah'!C177)","v":"0"}]
[null,175,{"$f":"'Penjejak Markah'!C178&COUNTIF('Penjejak Markah'!$C$4:C178,'Penjejak Markah'!C178)","v":"0"}]
[null,176,{"$f":"'Penjejak Markah'!C179&COUNTIF('Penjejak Markah'!$C$4:C179,'Penjejak Markah'!C179)","v":"0"}]
[null,177,{"$f":"'Penjejak Markah'!C180&COUNTIF('Penjejak Markah'!$C$4:C180,'Penjejak Markah'!C180)","v":"0"}]
[null,178,{"$f":"'Penjejak Markah'!C181&COUNTIF('Penjejak Markah'!$C$4:C181,'Penjejak Markah'!C181)","v":"0"}]
[null,179,{"$f":"'Penjejak Markah'!C182&COUNTIF('Penjejak Markah'!$C$4:C182,'Penjejak Markah'!C182)","v":"0"}]
[null,180,{"$f":"'Penjejak Markah'!C183&COUNTIF('Penjejak Markah'!$C$4:C183,'Penjejak Markah'!C183)","v":"0"}]
[null,181,{"$f":"'Penjejak Markah'!C184&COUNTIF('Penjejak Markah'!$C$4:C184,'Penjejak Markah'!C184)","v":"0"}]
[null,182,{"$f":"'Penjejak Markah'!C185&COUNTIF('Penjejak Markah'!$C$4:C185,'Penjejak Markah'!C185)","v":"0"}]
[null,183,{"$f":"'Penjejak Markah'!C186&COUNTIF('Penjejak Markah'!$C$4:C186,'Penjejak Markah'!C186)","v":"0"}]
[null,184,{"$f":"'Penjejak Markah'!C187&COUNTIF('Penjejak Markah'!$C$4:C187,'Penjejak Markah'!C187)","v":"0"}]
[null,185,{"$f":"'Penjejak Markah'!C188&COUNTIF('Penjejak Markah'!$C$4:C188,'Penjejak Markah'!C188)","v":"0"}]
[null,186,{"$f":"'Penjejak Markah'!C189&COUNTIF('Penjejak Markah'!$C$4:C189,'Penjejak Markah'!C189)","v":"0"}]
[null,187,{"$f":"'Penjejak Markah'!C190&COUNTIF('Penjejak Markah'!$C$4:C190,'Penjejak Markah'!C190)","v":"0"}]
[null,188,{"$f":"'Penjejak Markah'!C191&COUNTIF('Penjejak Markah'!$C$4:C191,'Penjejak Markah'!C191)","v":"0"}]
[null,189,{"$f":"'Penjejak Markah'!C192&COUNTIF('Penjejak Markah'!$C$4:C192,'Penjejak Markah'!C192)","v":"0"}]
[null,190,{"$f":"'Penjejak Markah'!C193&COUNTIF('Penjejak Markah'!$C$4:C193,'Penjejak Markah'!C193)","v":"0"}]
[null,191,{"$f":"'Penjejak Markah'!C194&COUNTIF('Penjejak Markah'!$C$4:C194,'Penjejak Markah'!C194)","v":"0"}]
[null,192,{"$f":"'Penjejak Markah'!C195&COUNTIF('Penjejak Markah'!$C$4:C195,'Penjejak Markah'!C195)","v":"0"}]
[null,193,{"$f":"'Penjejak Markah'!C196&COUNTIF('Penjejak Markah'!$C$4:C196,'Penjejak Markah'!C196)","v":"0"}]
[null,194,{"$f":"'Penjejak Markah'!C197&COUNTIF('Penjejak Markah'!$C$4:C197,'Penjejak Markah'!C197)","v":"0"}]
[null,195,{"$f":"'Penjejak Markah'!C198&COUNTIF('Penjejak Markah'!$C$4:C198,'Penjejak Markah'!C198)","v":"0"}]
[null,196,{"$f":"'Penjejak Markah'!C199&COUNTIF('Penjejak Markah'!$C$4:C199,'Penjejak Markah'!C199)","v":"0"}]
[null,197,{"$f":"'Penjejak Markah'!C200&COUNTIF('Penjejak Markah'!$C$4:C200,'Penjejak Markah'!C200)","v":"0"}]
[null,198,{"$f":"'Penjejak Markah'!C201&COUNTIF('Penjejak Markah'!$C$4:C201,'Penjejak Markah'!C201)","v":"0"}]
[null,199,{"$f":"'Penjejak Markah'!C202&COUNTIF('Penjejak Markah'!$C$4:C202,'Penjejak Markah'!C202)","v":"0"}]
[null,200,{"$f":"'Penjejak Markah'!C203&COUNTIF('Penjejak Markah'!$C$4:C203,'Penjejak Markah'!C203)","v":"0"}]
[null,201,{"$f":"'Penjejak Markah'!C204&COUNTIF('Penjejak Markah'!$C$4:C204,'Penjejak Markah'!C204)","v":"0"}]
[null,202,{"$f":"'Penjejak Markah'!C205&COUNTIF('Penjejak Markah'!$C$4:C205,'Penjejak Markah'!C205)","v":"0"}]
[null,203,{"$f":"'Penjejak Markah'!C206&COUNTIF('Penjejak Markah'!$C$4:C206,'Penjejak Markah'!C206)","v":"0"}]
[null,204,{"$f":"'Penjejak Markah'!C207&COUNTIF('Penjejak Markah'!$C$4:C207,'Penjejak Markah'!C207)","v":"0"}]
[null,205,{"$f":"'Penjejak Markah'!C208&COUNTIF('Penjejak Markah'!$C$4:C208,'Penjejak Markah'!C208)","v":"0"}]
[null,206,{"$f":"'Penjejak Markah'!C209&COUNTIF('Penjejak Markah'!$C$4:C209,'Penjejak Markah'!C209)","v":"0"}]
[null,207,{"$f":"'Penjejak Markah'!C210&COUNTIF('Penjejak Markah'!$C$4:C210,'Penjejak Markah'!C210)","v":"0"}]
[null,208,{"$f":"'Penjejak Markah'!C211&COUNTIF('Penjejak Markah'!$C$4:C211,'Penjejak Markah'!C211)","v":"0"}]
[null,209,{"$f":"'Penjejak Markah'!C212&COUNTIF('Penjejak Markah'!$C$4:C212,'Penjejak Markah'!C212)","v":"0"}]
[null,210,{"$f":"'Penjejak Markah'!C213&COUNTIF('Penjejak Markah'!$C$4:C213,'Penjejak Markah'!C213)","v":"0"}]
[null,211,{"$f":"'Penjejak Markah'!C214&COUNTIF('Penjejak Markah'!$C$4:C214,'Penjejak Markah'!C214)","v":"0"}]
[null,212,{"$f":"'Penjejak Markah'!C215&COUNTIF('Penjejak Markah'!$C$4:C215,'Penjejak Markah'!C215)","v":"0"}]
[null,213,{"$f":"'Penjejak Markah'!C216&COUNTIF('Penjejak Markah'!$C$4:C216,'Penjejak Markah'!C216)","v":"0"}]
[null,214,{"$f":"'Penjejak Markah'!C217&COUNTIF('Penjejak Markah'!$C$4:C217,'Penjejak Markah'!C217)","v":"0"}]
[null,215,{"$f":"'Penjejak Markah'!C218&COUNTIF('Penjejak Markah'!$C$4:C218,'Penjejak Markah'!C218)","v":"0"}]
[null,216,{"$f":"'Penjejak Markah'!C219&COUNTIF('Penjejak Markah'!$C$4:C219,'Penjejak Markah'!C219)","v":"0"}]
[null,217,{"$f":"'Penjejak Markah'!C220&COUNTIF('Penjejak Markah'!$C$4:C220,'Penjejak Markah'!C220)","v":"0"}]
[null,218,{"$f":"'Penjejak Markah'!C221&COUNTIF('Penjejak Markah'!$C$4:C221,'Penjejak Markah'!C221)","v":"0"}]
[null,219,{"$f":"'Penjejak Markah'!C222&COUNTIF('Penjejak Markah'!$C$4:C222,'Penjejak Markah'!C222)","v":"0"}]
[null,220,{"$f":"'Penjejak Markah'!C223&COUNTIF('Penjejak Markah'!$C$4:C223,'Penjejak Markah'!C223)","v":"0"}]
[null,221,{"$f":"'Penjejak Markah'!C224&COUNTIF('Penjejak Markah'!$C$4:C224,'Penjejak Markah'!C224)","v":"0"}]
[null,222,{"$f":"'Penjejak Markah'!C225&COUNTIF('Penjejak Markah'!$C$4:C225,'Penjejak Markah'!C225)","v":"0"}]
[null,223,{"$f":"'Penjejak Markah'!C226&COUNTIF('Penjejak Markah'!$C$4:C226,'Penjejak Markah'!C226)","v":"0"}]
[null,224,{"$f":"'Penjejak Markah'!C227&COUNTIF('Penjejak Markah'!$C$4:C227,'Penjejak Markah'!C227)","v":"0"}]
[null,225,{"$f":"'Penjejak Markah'!C228&COUNTIF('Penjejak Markah'!$C$4:C228,'Penjejak Markah'!C228)","v":"0"}]
[null,226,{"$f":"'Penjejak Markah'!C229&COUNTIF('Penjejak Markah'!$C$4:C229,'Penjejak Markah'!C229)","v":"0"}]
[null,227,{"$f":"'Penjejak Markah'!C230&COUNTIF('Penjejak Markah'!$C$4:C230,'Penjejak Markah'!C230)","v":"0"}]
[null,228,{"$f":"'Penjejak Markah'!C231&COUNTIF('Penjejak Markah'!$C$4:C231,'Penjejak Markah'!C231)","v":"0"}]
[null,229,{"$f":"'Penjejak Markah'!C232&COUNTIF('Penjejak Markah'!$C$4:C232,'Penjejak Markah'!C232)","v":"0"}]
[null,230,{"$f":"'Penjejak Markah'!C233&COUNTIF('Penjejak Markah'!$C$4:C233,'Penjejak Markah'!C233)","v":"0"}]
[null,231,{"$f":"'Penjejak Markah'!C234&COUNTIF('Penjejak Markah'!$C$4:C234,'Penjejak Markah'!C234)","v":"0"}]
[null,232,{"$f":"'Penjejak Markah'!C235&COUNTIF('Penjejak Markah'!$C$4:C235,'Penjejak Markah'!C235)","v":"0"}]
[null,233,{"$f":"'Penjejak Markah'!C236&COUNTIF('Penjejak Markah'!$C$4:C236,'Penjejak Markah'!C236)","v":"0"}]
[null,234,{"$f":"'Penjejak Markah'!C237&COUNTIF('Penjejak Markah'!$C$4:C237,'Penjejak Markah'!C237)","v":"0"}]
[null,235,{"$f":"'Penjejak Markah'!C238&COUNTIF('Penjejak Markah'!$C$4:C238,'Penjejak Markah'!C238)","v":"0"}]
[null,236,{"$f":"'Penjejak Markah'!C239&COUNTIF('Penjejak Markah'!$C$4:C239,'Penjejak Markah'!C239)","v":"0"}]
[null,237,{"$f":"'Penjejak Markah'!C240&COUNTIF('Penjejak Markah'!$C$4:C240,'Penjejak Markah'!C240)","v":"0"}]
[null,238,{"$f":"'Penjejak Markah'!C241&COUNTIF('Penjejak Markah'!$C$4:C241,'Penjejak Markah'!C241)","v":"0"}]
[null,239,{"$f":"'Penjejak Markah'!C242&COUNTIF('Penjejak Markah'!$C$4:C242,'Penjejak Markah'!C242)","v":"0"}]
[null,240,{"$f":"'Penjejak Markah'!C243&COUNTIF('Penjejak Markah'!$C$4:C243,'Penjejak Markah'!C243)","v":"0"}]
[null,241,{"$f":"'Penjejak Markah'!C244&COUNTIF('Penjejak Markah'!$C$4:C244,'Penjejak Markah'!C244)","v":"0"}]
[null,242,{"$f":"'Penjejak Markah'!C245&COUNTIF('Penjejak Markah'!$C$4:C245,'Penjejak Markah'!C245)","v":"0"}]
[null,243,{"$f":"'Penjejak Markah'!C246&COUNTIF('Penjejak Markah'!$C$4:C246,'Penjejak Markah'!C246)","v":"0"}]
[null,244,{"$f":"'Penjejak Markah'!C247&COUNTIF('Penjejak Markah'!$C$4:C247,'Penjejak Markah'!C247)","v":"0"}]
[null,245,{"$f":"'Penjejak Markah'!C248&COUNTIF('Penjejak Markah'!$C$4:C248,'Penjejak Markah'!C248)","v":"0"}]
[null,246,{"$f":"'Penjejak Markah'!C249&COUNTIF('Penjejak Markah'!$C$4:C249,'Penjejak Markah'!C249)","v":"0"}]
[null,247,{"$f":"'Penjejak Markah'!C250&COUNTIF('Penjejak Markah'!$C$4:C250,'Penjejak Markah'!C250)","v":"0"}]
[null,248,{"$f":"'Penjejak Markah'!C251&COUNTIF('Penjejak Markah'!$C$4:C251,'Penjejak Markah'!C251)","v":"0"}]
[null,249,{"$f":"'Penjejak Markah'!C252&COUNTIF('Penjejak Markah'!$C$4:C252,'Penjejak Markah'!C252)","v":"0"}]
[null,250,{"$f":"'Penjejak Markah'!C253&COUNTIF('Penjejak Markah'!$C$4:C253,'Penjejak Markah'!C253)","v":"0"}]
[null,251,{"$f":"'Penjejak Markah'!C254&COUNTIF('Penjejak Markah'!$C$4:C254,'Penjejak Markah'!C254)","v":"0"}]
[null,252,{"$f":"'Penjejak Markah'!C255&COUNTIF('Penjejak Markah'!$C$4:C255,'Penjejak Markah'!C255)","v":"0"}]
[null,253,{"$f":"'Penjejak Markah'!C256&COUNTIF('Penjejak Markah'!$C$4:C256,'Penjejak Markah'!C256)","v":"0"}]
[null,254,{"$f":"'Penjejak Markah'!C257&COUNTIF('Penjejak Markah'!$C$4:C257,'Penjejak Markah'!C257)","v":"0"}]
[null,255,{"$f":"'Penjejak Markah'!C258&COUNTIF('Penjejak Markah'!$C$4:C258,'Penjejak Markah'!C258)","v":"0"}]
[null,256,{"$f":"'Penjejak Markah'!C259&COUNTIF('Penjejak Markah'!$C$4:C259,'Penjejak Markah'!C259)","v":"0"}]
[null,257,{"$f":"'Penjejak Markah'!C260&COUNTIF('Penjejak Markah'!$C$4:C260,'Penjejak Markah'!C260)","v":"0"}]
[null,258,{"$f":"'Penjejak Markah'!C261&COUNTIF('Penjejak Markah'!$C$4:C261,'Penjejak Markah'!C261)","v":"0"}]
[null,259,{"$f":"'Penjejak Markah'!C262&COUNTIF('Penjejak Markah'!$C$4:C262,'Penjejak Markah'!C262)","v":"0"}]
[null,260,{"$f":"'Penjejak Markah'!C263&COUNTIF('Penjejak Markah'!$C$4:C263,'Penjejak Markah'!C263)","v":"0"}]
[null,261,{"$f":"'Penjejak Markah'!C264&COUNTIF('Penjejak Markah'!$C$4:C264,'Penjejak Markah'!C264)","v":"0"}]
[null,262,{"$f":"'Penjejak Markah'!C265&COUNTIF('Penjejak Markah'!$C$4:C265,'Penjejak Markah'!C265)","v":"0"}]
[null,263,{"$f":"'Penjejak Markah'!C266&COUNTIF('Penjejak Markah'!$C$4:C266,'Penjejak Markah'!C266)","v":"0"}]
[null,264,{"$f":"'Penjejak Markah'!C267&COUNTIF('Penjejak Markah'!$C$4:C267,'Penjejak Markah'!C267)","v":"0"}]
[null,265,{"$f":"'Penjejak Markah'!C268&COUNTIF('Penjejak Markah'!$C$4:C268,'Penjejak Markah'!C268)","v":"0"}]
[null,266,{"$f":"'Penjejak Markah'!C269&COUNTIF('Penjejak Markah'!$C$4:C269,'Penjejak Markah'!C269)","v":"0"}]
[null,267,{"$f":"'Penjejak Markah'!C270&COUNTIF('Penjejak Markah'!$C$4:C270,'Penjejak Markah'!C270)","v":"0"}]
[null,268,{"$f":"'Penjejak Markah'!C271&COUNTIF('Penjejak Markah'!$C$4:C271,'Penjejak Markah'!C271)","v":"0"}]
[null,269,{"$f":"'Penjejak Markah'!C272&COUNTIF('Penjejak Markah'!$C$4:C272,'Penjejak Markah'!C272)","v":"0"}]
[null,270,{"$f":"'Penjejak Markah'!C273&COUNTIF('Penjejak Markah'!$C$4:C273,'Penjejak Markah'!C273)","v":"0"}]
[null,271,{"$f":"'Penjejak Markah'!C274&COUNTIF('Penjejak Markah'!$C$4:C274,'Penjejak Markah'!C274)","v":"0"}]
[null,272,{"$f":"'Penjejak Markah'!C275&COUNTIF('Penjejak Markah'!$C$4:C275,'Penjejak Markah'!C275)","v":"0"}]
[null,273,{"$f":"'Penjejak Markah'!C276&COUNTIF('Penjejak Markah'!$C$4:C276,'Penjejak Markah'!C276)","v":"0"}]
[null,274,{"$f":"'Penjejak Markah'!C277&COUNTIF('Penjejak Markah'!$C$4:C277,'Penjejak Markah'!C277)","v":"0"}]
[null,275,{"$f":"'Penjejak Markah'!C278&COUNTIF('Penjejak Markah'!$C$4:C278,'Penjejak Markah'!C278)","v":"0"}]
[null,276,{"$f":"'Penjejak Markah'!C279&COUNTIF('Penjejak Markah'!$C$4:C279,'Penjejak Markah'!C279)","v":"0"}]
[null,277,{"$f":"'Penjejak Markah'!C280&COUNTIF('Penjejak Markah'!$C$4:C280,'Penjejak Markah'!C280)","v":"0"}]
[null,278,{"$f":"'Penjejak Markah'!C281&COUNTIF('Penjejak Markah'!$C$4:C281,'Penjejak Markah'!C281)","v":"0"}]
[null,279,{"$f":"'Penjejak Markah'!C282&COUNTIF('Penjejak Markah'!$C$4:C282,'Penjejak Markah'!C282)","v":"0"}]
[null,280,{"$f":"'Penjejak Markah'!C283&COUNTIF('Penjejak Markah'!$C$4:C283,'Penjejak Markah'!C283)","v":"0"}]
[null,281,{"$f":"'Penjejak Markah'!C284&COUNTIF('Penjejak Markah'!$C$4:C284,'Penjejak Markah'!C284)","v":"0"}]
[null,282,{"$f":"'Penjejak Markah'!C285&COUNTIF('Penjejak Markah'!$C$4:C285,'Penjejak Markah'!C285)","v":"0"}]
[null,283,{"$f":"'Penjejak Markah'!C286&COUNTIF('Penjejak Markah'!$C$4:C286,'Penjejak Markah'!C286)","v":"0"}]
[null,284,{"$f":"'Penjejak Markah'!C287&COUNTIF('Penjejak Markah'!$C$4:C287,'Penjejak Markah'!C287)","v":"0"}]
[null,285,{"$f":"'Penjejak Markah'!C288&COUNTIF('Penjejak Markah'!$C$4:C288,'Penjejak Markah'!C288)","v":"0"}]
[null,286,{"$f":"'Penjejak Markah'!C289&COUNTIF('Penjejak Markah'!$C$4:C289,'Penjejak Markah'!C289)","v":"0"}]
[null,287,{"$f":"'Penjejak Markah'!C290&COUNTIF('Penjejak Markah'!$C$4:C290,'Penjejak Markah'!C290)","v":"0"}]
[null,288,{"$f":"'Penjejak Markah'!C291&COUNTIF('Penjejak Markah'!$C$4:C291,'Penjejak Markah'!C291)","v":"0"}]
[null,289,{"$f":"'Penjejak Markah'!C292&COUNTIF('Penjejak Markah'!$C$4:C292,'Penjejak Markah'!C292)","v":"0"}]
[null,290,{"$f":"'Penjejak Markah'!C293&COUNTIF('Penjejak Markah'!$C$4:C293,'Penjejak Markah'!C293)","v":"0"}]
[null,291,{"$f":"'Penjejak Markah'!C294&COUNTIF('Penjejak Markah'!$C$4:C294,'Penjejak Markah'!C294)","v":"0"}]
[null,292,{"$f":"'Penjejak Markah'!C295&COUNTIF('Penjejak Markah'!$C$4:C295,'Penjejak Markah'!C295)","v":"0"}]
[null,293,{"$f":"'Penjejak Markah'!C296&COUNTIF('Penjejak Markah'!$C$4:C296,'Penjejak Markah'!C296)","v":"0"}]
[null,294,{"$f":"'Penjejak Markah'!C297&COUNTIF('Penjejak Markah'!$C$4:C297,'Penjejak Markah'!C297)","v":"0"}]
[null,295,{"$f":"'Penjejak Markah'!C298&COUNTIF('Penjejak Markah'!$C$4:C298,'Penjejak Markah'!C298)","v":"0"}]
[null,296,{"$f":"'Penjejak Markah'!C299&COUNTIF('Penjejak Markah'!$C$4:C299,'Penjejak Markah'!C299)","v":"0"}]
[null,297,{"$f":"'Penjejak Markah'!C300&COUNTIF('Penjejak Markah'!$C$4:C300,'Penjejak Markah'!C300)","v":"0"}]
[null,298,{"$f":"'Penjejak Markah'!C301&COUNTIF('Penjejak Markah'!$C$4:C301,'Penjejak Markah'!C301)","v":"0"}]
[null,299,{"$f":"'Penjejak Markah'!C302&COUNTIF('Penjejak Markah'!$C$4:C302,'Penjejak Markah'!C302)","v":"0"}]
[null,300,{"$f":"'Penjejak Markah'!C303&COUNTIF('Penjejak Markah'!$C$4:C303,'Penjejak Markah'!C303)","v":"0"}]
[null,301,{"$f":"'Penjejak Markah'!C304&COUNTIF('Penjejak Markah'!$C$4:C304,'Penjejak Markah'!C304)","v":"0"}]
[null,302,{"$f":"'Penjejak Markah'!C305&COUNTIF('Penjejak Markah'!$C$4:C305,'Penjejak Markah'!C305)","v":"0"}]
[null,303,{"$f":"'Penjejak Markah'!C306&COUNTIF('Penjejak Markah'!$C$4:C306,'Penjejak Markah'!C306)","v":"0"}]
[null,304,{"$f":"'Penjejak Markah'!C307&COUNTIF('Penjejak Markah'!$C$4:C307,'Penjejak Markah'!C307)","v":"0"}]
[null,305,{"$f":"'Penjejak Markah'!C308&COUNTIF('Penjejak Markah'!$C$4:C308,'Penjejak Markah'!C308)","v":"0"}]
[null,306,{"$f":"'Penjejak Markah'!C309&COUNTIF('Penjejak Markah'!$C$4:C309,'Penjejak Markah'!C309)","v":"0"}]
[null,307,{"$f":"'Penjejak Markah'!C310&COUNTIF('Penjejak Markah'!$C$4:C310,'Penjejak Markah'!C310)","v":"0"}]
[null,308,{"$f":"'Penjejak Markah'!C311&COUNTIF('Penjejak Markah'!$C$4:C311,'Penjejak Markah'!C311)","v":"0"}]
[null,309,{"$f":"'Penjejak Markah'!C312&COUNTIF('Penjejak Markah'!$C$4:C312,'Penjejak Markah'!C312)","v":"0"}]
[null,310,{"$f":"'Penjejak Markah'!C313&COUNTIF('Penjejak Markah'!$C$4:C313,'Penjejak Markah'!C313)","v":"0"}]
[null,311,{"$f":"'Penjejak Markah'!C314&COUNTIF('Penjejak Markah'!$C$4:C314,'Penjejak Markah'!C314)","v":"0"}]
[null,312,{"$f":"'Penjejak Markah'!C315&COUNTIF('Penjejak Markah'!$C$4:C315,'Penjejak Markah'!C315)","v":"0"}]
[null,313,{"$f":"'Penjejak Markah'!C316&COUNTIF('Penjejak Markah'!$C$4:C316,'Penjejak Markah'!C316)","v":"0"}]
[null,314,{"$f":"'Penjejak Markah'!C317&COUNTIF('Penjejak Markah'!$C$4:C317,'Penjejak Markah'!C317)","v":"0"}]
[null,315,{"$f":"'Penjejak Markah'!C318&COUNTIF('Penjejak Markah'!$C$4:C318,'Penjejak Markah'!C318)","v":"0"}]
[null,316,{"$f":"'Penjejak Markah'!C319&COUNTIF('Penjejak Markah'!$C$4:C319,'Penjejak Markah'!C319)","v":"0"}]
[null,317,{"$f":"'Penjejak Markah'!C320&COUNTIF('Penjejak Markah'!$C$4:C320,'Penjejak Markah'!C320)","v":"0"}]
[null,318,{"$f":"'Penjejak Markah'!C321&COUNTIF('Penjejak Markah'!$C$4:C321,'Penjejak Markah'!C321)","v":"0"}]
[null,319,{"$f":"'Penjejak Markah'!C322&COUNTIF('Penjejak Markah'!$C$4:C322,'Penjejak Markah'!C322)","v":"0"}]
[null,320,{"$f":"'Penjejak Markah'!C323&COUNTIF('Penjejak Markah'!$C$4:C323,'Penjejak Markah'!C323)","v":"0"}]
[null,321,{"$f":"'Penjejak Markah'!C324&COUNTIF('Penjejak Markah'!$C$4:C324,'Penjejak Markah'!C324)","v":"0"}]
[null,322,{"$f":"'Penjejak Markah'!C325&COUNTIF('Penjejak Markah'!$C$4:C325,'Penjejak Markah'!C325)","v":"0"}]
[null,323,{"$f":"'Penjejak Markah'!C326&COUNTIF('Penjejak Markah'!$C$4:C326,'Penjejak Markah'!C326)","v":"0"}]
[null,324,{"$f":"'Penjejak Markah'!C327&COUNTIF('Penjejak Markah'!$C$4:C327,'Penjejak Markah'!C327)","v":"0"}]
[null,325,{"$f":"'Penjejak Markah'!C328&COUNTIF('Penjejak Markah'!$C$4:C328,'Penjejak Markah'!C328)","v":"0"}]
[null,326,{"$f":"'Penjejak Markah'!C329&COUNTIF('Penjejak Markah'!$C$4:C329,'Penjejak Markah'!C329)","v":"0"}]
[null,327,{"$f":"'Penjejak Markah'!C330&COUNTIF('Penjejak Markah'!$C$4:C330,'Penjejak Markah'!C330)","v":"0"}]
[null,328,{"$f":"'Penjejak Markah'!C331&COUNTIF('Penjejak Markah'!$C$4:C331,'Penjejak Markah'!C331)","v":"0"}]
[null,329,{"$f":"'Penjejak Markah'!C332&COUNTIF('Penjejak Markah'!$C$4:C332,'Penjejak Markah'!C332)","v":"0"}]
[null,330,{"$f":"'Penjejak Markah'!C333&COUNTIF('Penjejak Markah'!$C$4:C333,'Penjejak Markah'!C333)","v":"0"}]
[null,331,{"$f":"'Penjejak Markah'!C334&COUNTIF('Penjejak Markah'!$C$4:C334,'Penjejak Markah'!C334)","v":"0"}]
[null,332,{"$f":"'Penjejak Markah'!C335&COUNTIF('Penjejak Markah'!$C$4:C335,'Penjejak Markah'!C335)","v":"0"}]
[null,333,{"$f":"'Penjejak Markah'!C336&COUNTIF('Penjejak Markah'!$C$4:C336,'Penjejak Markah'!C336)","v":"0"}]
[null,334,{"$f":"'Penjejak Markah'!C337&COUNTIF('Penjejak Markah'!$C$4:C337,'Penjejak Markah'!C337)","v":"0"}]
[null,335,{"$f":"'Penjejak Markah'!C338&COUNTIF('Penjejak Markah'!$C$4:C338,'Penjejak Markah'!C338)","v":"0"}]
[null,336,{"$f":"'Penjejak Markah'!C339&COUNTIF('Penjejak Markah'!$C$4:C339,'Penjejak Markah'!C339)","v":"0"}]
[null,337,{"$f":"'Penjejak Markah'!C340&COUNTIF('Penjejak Markah'!$C$4:C340,'Penjejak Markah'!C340)","v":"0"}]
[null,338,{"$f":"'Penjejak Markah'!C341&COUNTIF('Penjejak Markah'!$C$4:C341,'Penjejak Markah'!C341)","v":"0"}]
[null,339,{"$f":"'Penjejak Markah'!C342&COUNTIF('Penjejak Markah'!$C$4:C342,'Penjejak Markah'!C342)","v":"0"}]
[null,340,{"$f":"'Penjejak Markah'!C343&COUNTIF('Penjejak Markah'!$C$4:C343,'Penjejak Markah'!C343)","v":"0"}]
[null,341,{"$f":"'Penjejak Markah'!C344&COUNTIF('Penjejak Markah'!$C$4:C344,'Penjejak Markah'!C344)","v":"0"}]
[null,342,{"$f":"'Penjejak Markah'!C345&COUNTIF('Penjejak Markah'!$C$4:C345,'Penjejak Markah'!C345)","v":"0"}]
[null,343,{"$f":"'Penjejak Markah'!C346&COUNTIF('Penjejak Markah'!$C$4:C346,'Penjejak Markah'!C346)","v":"0"}]
[null,344,{"$f":"'Penjejak Markah'!C347&COUNTIF('Penjejak Markah'!$C$4:C347,'Penjejak Markah'!C347)","v":"0"}]
[null,345,{"$f":"'Penjejak Markah'!C348&COUNTIF('Penjejak Markah'!$C$4:C348,'Penjejak Markah'!C348)","v":"0"}]
[null,346,{"$f":"'Penjejak Markah'!C349&COUNTIF('Penjejak Markah'!$C$4:C349,'Penjejak Markah'!C349)","v":"0"}]
[null,347,{"$f":"'Penjejak Markah'!C350&COUNTIF('Penjejak Markah'!$C$4:C350,'Penjejak Markah'!C350)","v":"0"}]
[null,348,{"$f":"'Penjejak Markah'!C351&COUNTIF('Penjejak Markah'!$C$4:C351,'Penjejak Markah'!C351)","v":"0"}]
[null,349,{"$f":"'Penjejak Markah'!C352&COUNTIF('Penjejak Markah'!$C$4:C352,'Penjejak Markah'!C352)","v":"0"}]
[null,350,{"$f":"'Penjejak Markah'!C353&COUNTIF('Penjejak Markah'!$C$4:C353,'Penjejak Markah'!C353)","v":"0"}]
[null,351,{"$f":"'Penjejak Markah'!C354&COUNTIF('Penjejak Markah'!$C$4:C354,'Penjejak Markah'!C354)","v":"0"}]
[null,352,{"$f":"'Penjejak Markah'!C355&COUNTIF('Penjejak Markah'!$C$4:C355,'Penjejak Markah'!C355)","v":"0"}]
[null,353,{"$f":"'Penjejak Markah'!C356&COUNTIF('Penjejak Markah'!$C$4:C356,'Penjejak Markah'!C356)","v":"0"}]
[null,354,{"$f":"'Penjejak Markah'!C357&COUNTIF('Penjejak Markah'!$C$4:C357,'Penjejak Markah'!C357)","v":"0"}]
[null,355,{"$f":"'Penjejak Markah'!C358&COUNTIF('Penjejak Markah'!$C$4:C358,'Penjejak Markah'!C358)","v":"0"}]
[null,356,{"$f":"'Penjejak Markah'!C359&COUNTIF('Penjejak Markah'!$C$4:C359,'Penjejak Markah'!C359)","v":"0"}]
[null,357,{"$f":"'Penjejak Markah'!C360&COUNTIF('Penjejak Markah'!$C$4:C360,'Penjejak Markah'!C360)","v":"0"}]
[null,358,{"$f":"'Penjejak Markah'!C361&COUNTIF('Penjejak Markah'!$C$4:C361,'Penjejak Markah'!C361)","v":"0"}]
[null,359,{"$f":"'Penjejak Markah'!C362&COUNTIF('Penjejak Markah'!$C$4:C362,'Penjejak Markah'!C362)","v":"0"}]
[null,360,{"$f":"'Penjejak Markah'!C363&COUNTIF('Penjejak Markah'!$C$4:C363,'Penjejak Markah'!C363)","v":"0"}]
[null,361,{"$f":"'Penjejak Markah'!C364&COUNTIF('Penjejak Markah'!$C$4:C364,'Penjejak Markah'!C364)","v":"0"}]
[null,362,{"$f":"'Penjejak Markah'!C365&COUNTIF('Penjejak Markah'!$C$4:C365,'Penjejak Markah'!C365)","v":"0"}]
[null,363,{"$f":"'Penjejak Markah'!C366&COUNTIF('Penjejak Markah'!$C$4:C366,'Penjejak Markah'!C366)","v":"0"}]
[null,364,{"$f":"'Penjejak Markah'!C367&COUNTIF('Penjejak Markah'!$C$4:C367,'Penjejak Markah'!C367)","v":"0"}]
[null,365,{"$f":"'Penjejak Markah'!C368&COUNTIF('Penjejak Markah'!$C$4:C368,'Penjejak Markah'!C368)","v":"0"}]
[null,366,{"$f":"'Penjejak Markah'!C369&COUNTIF('Penjejak Markah'!$C$4:C369,'Penjejak Markah'!C369)","v":"0"}]
[null,367,{"$f":"'Penjejak Markah'!C370&COUNTIF('Penjejak Markah'!$C$4:C370,'Penjejak Markah'!C370)","v":"0"}]
[null,368,{"$f":"'Penjejak Markah'!C371&COUNTIF('Penjejak Markah'!$C$4:C371,'Penjejak Markah'!C371)","v":"0"}]
[null,369,{"$f":"'Penjejak Markah'!C372&COUNTIF('Penjejak Markah'!$C$4:C372,'Penjejak Markah'!C372)","v":"0"}]
[null,370,{"$f":"'Penjejak Markah'!C373&COUNTIF('Penjejak Markah'!$C$4:C373,'Penjejak Markah'!C373)","v":"0"}]
[null,371,{"$f":"'Penjejak Markah'!C374&COUNTIF('Penjejak Markah'!$C$4:C374,'Penjejak Markah'!C374)","v":"0"}]
[null,372,{"$f":"'Penjejak Markah'!C375&COUNTIF('Penjejak Markah'!$C$4:C375,'Penjejak Markah'!C375)","v":"0"}]
[null,373,{"$f":"'Penjejak Markah'!C376&COUNTIF('Penjejak Markah'!$C$4:C376,'Penjejak Markah'!C376)","v":"0"}]
[null,374,{"$f":"'Penjejak Markah'!C377&COUNTIF('Penjejak Markah'!$C$4:C377,'Penjejak Markah'!C377)","v":"0"}]
[null,375,{"$f":"'Penjejak Markah'!C378&COUNTIF('Penjejak Markah'!$C$4:C378,'Penjejak Markah'!C378)","v":"0"}]
[null,376,{"$f":"'Penjejak Markah'!C379&COUNTIF('Penjejak Markah'!$C$4:C379,'Penjejak Markah'!C379)","v":"0"}]
[null,377,{"$f":"'Penjejak Markah'!C380&COUNTIF('Penjejak Markah'!$C$4:C380,'Penjejak Markah'!C380)","v":"0"}]
[null,378,{"$f":"'Penjejak Markah'!C381&COUNTIF('Penjejak Markah'!$C$4:C381,'Penjejak Markah'!C381)","v":"0"}]
[null,379,{"$f":"'Penjejak Markah'!C382&COUNTIF('Penjejak Markah'!$C$4:C382,'Penjejak Markah'!C382)","v":"0"}]
[null,380,{"$f":"'Penjejak Markah'!C383&COUNTIF('Penjejak Markah'!$C$4:C383,'Penjejak Markah'!C383)","v":"0"}]
[null,381,{"$f":"'Penjejak Markah'!C384&COUNTIF('Penjejak Markah'!$C$4:C384,'Penjejak Markah'!C384)","v":"0"}]
[null,382,{"$f":"'Penjejak Markah'!C385&COUNTIF('Penjejak Markah'!$C$4:C385,'Penjejak Markah'!C385)","v":"0"}]
[null,383,{"$f":"'Penjejak Markah'!C386&COUNTIF('Penjejak Markah'!$C$4:C386,'Penjejak Markah'!C386)","v":"0"}]
[null,384,{"$f":"'Penjejak Markah'!C387&COUNTIF('Penjejak Markah'!$C$4:C387,'Penjejak Markah'!C387)","v":"0"}]
[null,385,{"$f":"'Penjejak Markah'!C388&COUNTIF('Penjejak Markah'!$C$4:C388,'Penjejak Markah'!C388)","v":"0"}]
[null,386,{"$f":"'Penjejak Markah'!C389&COUNTIF('Penjejak Markah'!$C$4:C389,'Penjejak Markah'!C389)","v":"0"}]
[null,387,{"$f":"'Penjejak Markah'!C390&COUNTIF('Penjejak Markah'!$C$4:C390,'Penjejak Markah'!C390)","v":"0"}]
[null,388,{"$f":"'Penjejak Markah'!C391&COUNTIF('Penjejak Markah'!$C$4:C391,'Penjejak Markah'!C391)","v":"0"}]
[null,389,{"$f":"'Penjejak Markah'!C392&COUNTIF('Penjejak Markah'!$C$4:C392,'Penjejak Markah'!C392)","v":"0"}]
[null,390,{"$f":"'Penjejak Markah'!C393&COUNTIF('Penjejak Markah'!$C$4:C393,'Penjejak Markah'!C393)","v":"0"}]
[null,391,{"$f":"'Penjejak Markah'!C394&COUNTIF('Penjejak Markah'!$C$4:C394,'Penjejak Markah'!C394)","v":"0"}]
[null,392,{"$f":"'Penjejak Markah'!C395&COUNTIF('Penjejak Markah'!$C$4:C395,'Penjejak Markah'!C395)","v":"0"}]
[null,393,{"$f":"'Penjejak Markah'!C396&COUNTIF('Penjejak Markah'!$C$4:C396,'Penjejak Markah'!C396)","v":"0"}]
[null,394,{"$f":"'Penjejak Markah'!C397&COUNTIF('Penjejak Markah'!$C$4:C397,'Penjejak Markah'!C397)","v":"0"}]
[null,395,{"$f":"'Penjejak Markah'!C398&COUNTIF('Penjejak Markah'!$C$4:C398,'Penjejak Markah'!C398)","v":"0"}]
[null,396,{"$f":"'Penjejak Markah'!C399&COUNTIF('Penjejak Markah'!$C$4:C399,'Penjejak Markah'!C399)","v":"0"}]
[null,397,{"$f":"'Penjejak Markah'!C400&COUNTIF('Penjejak Markah'!$C$4:C400,'Penjejak Markah'!C400)","v":"0"}]
[null,398,{"$f":"'Penjejak Markah'!C401&COUNTIF('Penjejak Markah'!$C$4:C401,'Penjejak Markah'!C401)","v":"0"}]
[null,399,{"$f":"'Penjejak Markah'!C402&COUNTIF('Penjejak Markah'!$C$4:C402,'Penjejak Markah'!C402)","v":"0"}]
[null,400,{"$f":"'Penjejak Markah'!C403&COUNTIF('Penjejak Markah'!$C$4:C403,'Penjejak Markah'!C403)","v":"0"}]
[null,401,{"$f":"'Penjejak Markah'!C404&COUNTIF('Penjejak Markah'!$C$4:C404,'Penjejak Markah'!C404)","v":"0"}]
[null,402,{"$f":"'Penjejak Markah'!C405&COUNTIF('Penjejak Markah'!$C$4:C405,'Penjejak Markah'!C405)","v":"0"}]
[null,403,{"$f":"'Penjejak Markah'!C406&COUNTIF('Penjejak Markah'!$C$4:C406,'Penjejak Markah'!C406)","v":"0"}]
[null,404,{"$f":"'Penjejak Markah'!C407&COUNTIF('Penjejak Markah'!$C$4:C407,'Penjejak Markah'!C407)","v":"0"}]
[null,405,{"$f":"'Penjejak Markah'!C408&COUNTIF('Penjejak Markah'!$C$4:C408,'Penjejak Markah'!C408)","v":"0"}]
[null,406,{"$f":"'Penjejak Markah'!C409&COUNTIF('Penjejak Markah'!$C$4:C409,'Penjejak Markah'!C409)","v":"0"}]
[null,407,{"$f":"'Penjejak Markah'!C410&COUNTIF('Penjejak Markah'!$C$4:C410,'Penjejak Markah'!C410)","v":"0"}]
[null,408,{"$f":"'Penjejak Markah'!C411&COUNTIF('Penjejak Markah'!$C$4:C411,'Penjejak Markah'!C411)","v":"0"}]
[null,409,{"$f":"'Penjejak Markah'!C412&COUNTIF('Penjejak Markah'!$C$4:C412,'Penjejak Markah'!C412)","v":"0"}]
[null,410,{"$f":"'Penjejak Markah'!C413&COUNTIF('Penjejak Markah'!$C$4:C413,'Penjejak Markah'!C413)","v":"0"}]
[null,411,{"$f":"'Penjejak Markah'!C414&COUNTIF('Penjejak Markah'!$C$4:C414,'Penjejak Markah'!C414)","v":"0"}]
[null,412,{"$f":"'Penjejak Markah'!C415&COUNTIF('Penjejak Markah'!$C$4:C415,'Penjejak Markah'!C415)","v":"0"}]
[null,413,{"$f":"'Penjejak Markah'!C416&COUNTIF('Penjejak Markah'!$C$4:C416,'Penjejak Markah'!C416)","v":"0"}]
[null,414,{"$f":"'Penjejak Markah'!C417&COUNTIF('Penjejak Markah'!$C$4:C417,'Penjejak Markah'!C417)","v":"0"}]
[null,415,{"$f":"'Penjejak Markah'!C418&COUNTIF('Penjejak Markah'!$C$4:C418,'Penjejak Markah'!C418)","v":"0"}]
[null,416,{"$f":"'Penjejak Markah'!C419&COUNTIF('Penjejak Markah'!$C$4:C419,'Penjejak Markah'!C419)","v":"0"}]
[null,417,{"$f":"'Penjejak Markah'!C420&COUNTIF('Penjejak Markah'!$C$4:C420,'Penjejak Markah'!C420)","v":"0"}]
[null,418,{"$f":"'Penjejak Markah'!C421&COUNTIF('Penjejak Markah'!$C$4:C421,'Penjejak Markah'!C421)","v":"0"}]
[null,419,{"$f":"'Penjejak Markah'!C422&COUNTIF('Penjejak Markah'!$C$4:C422,'Penjejak Markah'!C422)","v":"0"}]
[null,420,{"$f":"'Penjejak Markah'!C423&COUNTIF('Penjejak Markah'!$C$4:C423,'Penjejak Markah'!C423)","v":"0"}]
[null,421,{"$f":"'Penjejak Markah'!C424&COUNTIF('Penjejak Markah'!$C$4:C424,'Penjejak Markah'!C424)","v":"0"}]
[null,422,{"$f":"'Penjejak Markah'!C425&COUNTIF('Penjejak Markah'!$C$4:C425,'Penjejak Markah'!C425)","v":"0"}]
[null,423,{"$f":"'Penjejak Markah'!C426&COUNTIF('Penjejak Markah'!$C$4:C426,'Penjejak Markah'!C426)","v":"0"}]
[null,424,{"$f":"'Penjejak Markah'!C427&COUNTIF('Penjejak Markah'!$C$4:C427,'Penjejak Markah'!C427)","v":"0"}]
[null,425,{"$f":"'Penjejak Markah'!C428&COUNTIF('Penjejak Markah'!$C$4:C428,'Penjejak Markah'!C428)","v":"0"}]
[null,426,{"$f":"'Penjejak Markah'!C429&COUNTIF('Penjejak Markah'!$C$4:C429,'Penjejak Markah'!C429)","v":"0"}]
[null,427,{"$f":"'Penjejak Markah'!C430&COUNTIF('Penjejak Markah'!$C$4:C430,'Penjejak Markah'!C430)","v":"0"}]
[null,428,{"$f":"'Penjejak Markah'!C431&COUNTIF('Penjejak Markah'!$C$4:C431,'Penjejak Markah'!C431)","v":"0"}]
[null,429,{"$f":"'Penjejak Markah'!C432&COUNTIF('Penjejak Markah'!$C$4:C432,'Penjejak Markah'!C432)","v":"0"}]
[null,430,{"$f":"'Penjejak Markah'!C433&COUNTIF('Penjejak Markah'!$C$4:C433,'Penjejak Markah'!C433)","v":"0"}]
[null,431,{"$f":"'Penjejak Markah'!C434&COUNTIF('Penjejak Markah'!$C$4:C434,'Penjejak Markah'!C434)","v":"0"}]
[null,432,{"$f":"'Penjejak Markah'!C435&COUNTIF('Penjejak Markah'!$C$4:C435,'Penjejak Markah'!C435)","v":"0"}]
[null,433,{"$f":"'Penjejak Markah'!C436&COUNTIF('Penjejak Markah'!$C$4:C436,'Penjejak Markah'!C436)","v":"0"}]
[null,434,{"$f":"'Penjejak Markah'!C437&COUNTIF('Penjejak Markah'!$C$4:C437,'Penjejak Markah'!C437)","v":"0"}]
[null,435,{"$f":"'Penjejak Markah'!C438&COUNTIF('Penjejak Markah'!$C$4:C438,'Penjejak Markah'!C438)","v":"0"}]
[null,436,{"$f":"'Penjejak Markah'!C439&COUNTIF('Penjejak Markah'!$C$4:C439,'Penjejak Markah'!C439)","v":"0"}]
[null,437,{"$f":"'Penjejak Markah'!C440&COUNTIF('Penjejak Markah'!$C$4:C440,'Penjejak Markah'!C440)","v":"0"}]
[null,438,{"$f":"'Penjejak Markah'!C441&COUNTIF('Penjejak Markah'!$C$4:C441,'Penjejak Markah'!C441)","v":"0"}]
[null,439,{"$f":"'Penjejak Markah'!C442&COUNTIF('Penjejak Markah'!$C$4:C442,'Penjejak Markah'!C442)","v":"0"}]
[null,440,{"$f":"'Penjejak Markah'!C443&COUNTIF('Penjejak Markah'!$C$4:C443,'Penjejak Markah'!C443)","v":"0"}]
[null,441,{"$f":"'Penjejak Markah'!C444&COUNTIF('Penjejak Markah'!$C$4:C444,'Penjejak Markah'!C444)","v":"0"}]
[null,442,{"$f":"'Penjejak Markah'!C445&COUNTIF('Penjejak Markah'!$C$4:C445,'Penjejak Markah'!C445)","v":"0"}]
[null,443,{"$f":"'Penjejak Markah'!C446&COUNTIF('Penjejak Markah'!$C$4:C446,'Penjejak Markah'!C446)","v":"0"}]
[null,444,{"$f":"'Penjejak Markah'!C447&COUNTIF('Penjejak Markah'!$C$4:C447,'Penjejak Markah'!C447)","v":"0"}]
[null,445,{"$f":"'Penjejak Markah'!C448&COUNTIF('Penjejak Markah'!$C$4:C448,'Penjejak Markah'!C448)","v":"0"}]
[null,446,{"$f":"'Penjejak Markah'!C449&COUNTIF('Penjejak Markah'!$C$4:C449,'Penjejak Markah'!C449)","v":"0"}]
[null,447,{"$f":"'Penjejak Markah'!C450&COUNTIF('Penjejak Markah'!$C$4:C450,'Penjejak Markah'!C450)","v":"0"}]
[null,448,{"$f":"'Penjejak Markah'!C451&COUNTIF('Penjejak Markah'!$C$4:C451,'Penjejak Markah'!C451)","v":"0"}]
[null,449,{"$f":"'Penjejak Markah'!C452&COUNTIF('Penjejak Markah'!$C$4:C452,'Penjejak Markah'!C452)","v":"0"}]
[null,450,{"$f":"'Penjejak Markah'!C453&COUNTIF('Penjejak Markah'!$C$4:C453,'Penjejak Markah'!C453)","v":"0"}]
[null,451,{"$f":"'Penjejak Markah'!C454&COUNTIF('Penjejak Markah'!$C$4:C454,'Penjejak Markah'!C454)","v":"0"}]
[null,452,{"$f":"'Penjejak Markah'!C455&COUNTIF('Penjejak Markah'!$C$4:C455,'Penjejak Markah'!C455)","v":"0"}]
[null,453,{"$f":"'Penjejak Markah'!C456&COUNTIF('Penjejak Markah'!$C$4:C456,'Penjejak Markah'!C456)","v":"0"}]
[null,454,{"$f":"'Penjejak Markah'!C457&COUNTIF('Penjejak Markah'!$C$4:C457,'Penjejak Markah'!C457)","v":"0"}]
[null,455,{"$f":"'Penjejak Markah'!C458&COUNTIF('Penjejak Markah'!$C$4:C458,'Penjejak Markah'!C458)","v":"0"}]
[null,456,{"$f":"'Penjejak Markah'!C459&COUNTIF('Penjejak Markah'!$C$4:C459,'Penjejak Markah'!C459)","v":"0"}]
[null,457,{"$f":"'Penjejak Markah'!C460&COUNTIF('Penjejak Markah'!$C$4:C460,'Penjejak Markah'!C460)","v":"0"}]
[null,458,{"$f":"'Penjejak Markah'!C461&COUNTIF('Penjejak Markah'!$C$4:C461,'Penjejak Markah'!C461)","v":"0"}]
[null,459,{"$f":"'Penjejak Markah'!C462&COUNTIF('Penjejak Markah'!$C$4:C462,'Penjejak Markah'!C462)","v":"0"}]
[null,460,{"$f":"'Penjejak Markah'!C463&COUNTIF('Penjejak Markah'!$C$4:C463,'Penjejak Markah'!C463)","v":"0"}]
[null,461,{"$f":"'Penjejak Markah'!C464&COUNTIF('Penjejak Markah'!$C$4:C464,'Penjejak Markah'!C464)","v":"0"}]
[null,462,{"$f":"'Penjejak Markah'!C465&COUNTIF('Penjejak Markah'!$C$4:C465,'Penjejak Markah'!C465)","v":"0"}]
[null,463,{"$f":"'Penjejak Markah'!C466&COUNTIF('Penjejak Markah'!$C$4:C466,'Penjejak Markah'!C466)","v":"0"}]
[null,464,{"$f":"'Penjejak Markah'!C467&COUNTIF('Penjejak Markah'!$C$4:C467,'Penjejak Markah'!C467)","v":"0"}]
[null,465,{"$f":"'Penjejak Markah'!C468&COUNTIF('Penjejak Markah'!$C$4:C468,'Penjejak Markah'!C468)","v":"0"}]
[null,466,{"$f":"'Penjejak Markah'!C469&COUNTIF('Penjejak Markah'!$C$4:C469,'Penjejak Markah'!C469)","v":"0"}]
[null,467,{"$f":"'Penjejak Markah'!C470&COUNTIF('Penjejak Markah'!$C$4:C470,'Penjejak Markah'!C470)","v":"0"}]
[null,468,{"$f":"'Penjejak Markah'!C471&COUNTIF('Penjejak Markah'!$C$4:C471,'Penjejak Markah'!C471)","v":"0"}]
[null,469,{"$f":"'Penjejak Markah'!C472&COUNTIF('Penjejak Markah'!$C$4:C472,'Penjejak Markah'!C472)","v":"0"}]
[null,470,{"$f":"'Penjejak Markah'!C473&COUNTIF('Penjejak Markah'!$C$4:C473,'Penjejak Markah'!C473)","v":"0"}]
[null,471,{"$f":"'Penjejak Markah'!C474&COUNTIF('Penjejak Markah'!$C$4:C474,'Penjejak Markah'!C474)","v":"0"}]
[null,472,{"$f":"'Penjejak Markah'!C475&COUNTIF('Penjejak Markah'!$C$4:C475,'Penjejak Markah'!C475)","v":"0"}]
[null,473,{"$f":"'Penjejak Markah'!C476&COUNTIF('Penjejak Markah'!$C$4:C476,'Penjejak Markah'!C476)","v":"0"}]
[null,474,{"$f":"'Penjejak Markah'!C477&COUNTIF('Penjejak Markah'!$C$4:C477,'Penjejak Markah'!C477)","v":"0"}]
[null,475,{"$f":"'Penjejak Markah'!C478&COUNTIF('Penjejak Markah'!$C$4:C478,'Penjejak Markah'!C478)","v":"0"}]
[null,476,{"$f":"'Penjejak Markah'!C479&COUNTIF('Penjejak Markah'!$C$4:C479,'Penjejak Markah'!C479)","v":"0"}]
[null,477,{"$f":"'Penjejak Markah'!C480&COUNTIF('Penjejak Markah'!$C$4:C480,'Penjejak Markah'!C480)","v":"0"}]
[null,478,{"$f":"'Penjejak Markah'!C481&COUNTIF('Penjejak Markah'!$C$4:C481,'Penjejak Markah'!C481)","v":"0"}]
[null,479,{"$f":"'Penjejak Markah'!C482&COUNTIF('Penjejak Markah'!$C$4:C482,'Penjejak Markah'!C482)","v":"0"}]
[null,480,{"$f":"'Penjejak Markah'!C483&COUNTIF('Penjejak Markah'!$C$4:C483,'Penjejak Markah'!C483)","v":"0"}]
[null,481,{"$f":"'Penjejak Markah'!C484&COUNTIF('Penjejak Markah'!$C$4:C484,'Penjejak Markah'!C484)","v":"0"}]
[null,482,{"$f":"'Penjejak Markah'!C485&COUNTIF('Penjejak Markah'!$C$4:C485,'Penjejak Markah'!C485)","v":"0"}]
[null,483,{"$f":"'Penjejak Markah'!C486&COUNTIF('Penjejak Markah'!$C$4:C486,'Penjejak Markah'!C486)","v":"0"}]
[null,484,{"$f":"'Penjejak Markah'!C487&COUNTIF('Penjejak Markah'!$C$4:C487,'Penjejak Markah'!C487)","v":"0"}]
[null,485,{"$f":"'Penjejak Markah'!C488&COUNTIF('Penjejak Markah'!$C$4:C488,'Penjejak Markah'!C488)","v":"0"}]
[null,486,{"$f":"'Penjejak Markah'!C489&COUNTIF('Penjejak Markah'!$C$4:C489,'Penjejak Markah'!C489)","v":"0"}]
[null,487,{"$f":"'Penjejak Markah'!C490&COUNTIF('Penjejak Markah'!$C$4:C490,'Penjejak Markah'!C490)","v":"0"}]
[null,488,{"$f":"'Penjejak Markah'!C491&COUNTIF('Penjejak Markah'!$C$4:C491,'Penjejak Markah'!C491)","v":"0"}]
[null,489,{"$f":"'Penjejak Markah'!C492&COUNTIF('Penjejak Markah'!$C$4:C492,'Penjejak Markah'!C492)","v":"0"}]
[null,490,{"$f":"'Penjejak Markah'!C493&COUNTIF('Penjejak Markah'!$C$4:C493,'Penjejak Markah'!C493)","v":"0"}]
[null,491,{"$f":"'Penjejak Markah'!C494&COUNTIF('Penjejak Markah'!$C$4:C494,'Penjejak Markah'!C494)","v":"0"}]
[null,492,{"$f":"'Penjejak Markah'!C495&COUNTIF('Penjejak Markah'!$C$4:C495,'Penjejak Markah'!C495)","v":"0"}]
[null,493,{"$f":"'Penjejak Markah'!C496&COUNTIF('Penjejak Markah'!$C$4:C496,'Penjejak Markah'!C496)","v":"0"}]
[null,494,{"$f":"'Penjejak Markah'!C497&COUNTIF('Penjejak Markah'!$C$4:C497,'Penjejak Markah'!C497)","v":"0"}]
[null,495,{"$f":"'Penjejak Markah'!C498&COUNTIF('Penjejak Markah'!$C$4:C498,'Penjejak Markah'!C498)","v":"0"}]
[null,496,{"$f":"'Penjejak Markah'!C499&COUNTIF('Penjejak Markah'!$C$4:C499,'Penjejak Markah'!C499)","v":"0"}]
[null,497,{"$f":"'Penjejak Markah'!C500&COUNTIF('Penjejak Markah'!$C$4:C500,'Penjejak Markah'!C500)","v":"0"}]
[null,498,{"$f":"'Penjejak Markah'!C501&COUNTIF('Penjejak Markah'!$C$4:C501,'Penjejak Markah'!C501)","v":"0"}]
[null,499,{"$f":"'Penjejak Markah'!C502&COUNTIF('Penjejak Markah'!$C$4:C502,'Penjejak Markah'!C502)","v":"0"}]
[null,500,{"$f":"'Penjejak Markah'!C503&COUNTIF('Penjejak Markah'!$C$4:C503,'Penjejak Markah'!C503)","v":"0"}]
[null,501,{"$f":"'Penjejak Markah'!C504&COUNTIF('Penjejak Markah'!$C$4:C504,'Penjejak Markah'!C504)","v":"0"}]
[null,502,{"$f":"'Penjejak Markah'!C505&COUNTIF('Penjejak Markah'!$C$4:C505,'Penjejak Markah'!C505)","v":"0"}]
[null,503,{"$f":"'Penjejak Markah'!C506&COUNTIF('Penjejak Markah'!$C$4:C506,'Penjejak Markah'!C506)","v":"0"}]
[null,504,{"$f":"'Penjejak Markah'!C507&COUNTIF('Penjejak Markah'!$C$4:C507,'Penjejak Markah'!C507)","v":"0"}]
[null,505,{"$f":"'Penjejak Markah'!C508&COUNTIF('Penjejak Markah'!$C$4:C508,'Penjejak Markah'!C508)","v":"0"}]
[null,506,{"$f":"'Penjejak Markah'!C509&COUNTIF('Penjejak Markah'!$C$4:C509,'Penjejak Markah'!C509)","v":"0"}]
[null,507,{"$f":"'Penjejak Markah'!C510&COUNTIF('Penjejak Markah'!$C$4:C510,'Penjejak Markah'!C510)","v":"0"}]
[null,508,{"$f":"'Penjejak Markah'!C511&COUNTIF('Penjejak Markah'!$C$4:C511,'Penjejak Markah'!C511)","v":"0"}]
[null,509,{"$f":"'Penjejak Markah'!C512&COUNTIF('Penjejak Markah'!$C$4:C512,'Penjejak Markah'!C512)","v":"0"}]
[null,510,{"$f":"'Penjejak Markah'!C513&COUNTIF('Penjejak Markah'!$C$4:C513,'Penjejak Markah'!C513)","v":"0"}]
[null,511,{"$f":"'Penjejak Markah'!C514&COUNTIF('Penjejak Markah'!$C$4:C514,'Penjejak Markah'!C514)","v":"0"}]
[null,512,{"$f":"'Penjejak Markah'!C515&COUNTIF('Penjejak Markah'!$C$4:C515,'Penjejak Markah'!C515)","v":"0"}]
[null,513,{"$f":"'Penjejak Markah'!C516&COUNTIF('Penjejak Markah'!$C$4:C516,'Penjejak Markah'!C516)","v":"0"}]
[null,514,{"$f":"'Penjejak Markah'!C517&COUNTIF('Penjejak Markah'!$C$4:C517,'Penjejak Markah'!C517)","v":"0"}]
[null,515,{"$f":"'Penjejak Markah'!C518&COUNTIF('Penjejak Markah'!$C$4:C518,'Penjejak Markah'!C518)","v":"0"}]
[null,516,{"$f":"'Penjejak Markah'!C519&COUNTIF('Penjejak Markah'!$C$4:C519,'Penjejak Markah'!C519)","v":"0"}]
[null,517,{"$f":"'Penjejak Markah'!C520&COUNTIF('Penjejak Markah'!$C$4:C520,'Penjejak Markah'!C520)","v":"0"}]
[null,518,{"$f":"'Penjejak Markah'!C521&COUNTIF('Penjejak Markah'!$C$4:C521,'Penjejak Markah'!C521)","v":"0"}]
[null,519,{"$f":"'Penjejak Markah'!C522&COUNTIF('Penjejak Markah'!$C$4:C522,'Penjejak Markah'!C522)","v":"0"}]
[null,520,{"$f":"'Penjejak Markah'!C523&COUNTIF('Penjejak Markah'!$C$4:C523,'Penjejak Markah'!C523)","v":"0"}]
[null,521,{"$f":"'Penjejak Markah'!C524&COUNTIF('Penjejak Markah'!$C$4:C524,'Penjejak Markah'!C524)","v":"0"}]
[null,522,{"$f":"'Penjejak Markah'!C525&COUNTIF('Penjejak Markah'!$C$4:C525,'Penjejak Markah'!C525)","v":"0"}]
[null,523,{"$f":"'Penjejak Markah'!C526&COUNTIF('Penjejak Markah'!$C$4:C526,'Penjejak Markah'!C526)","v":"0"}]
[null,524,{"$f":"'Penjejak Markah'!C527&COUNTIF('Penjejak Markah'!$C$4:C527,'Penjejak Markah'!C527)","v":"0"}]
[null,525,{"$f":"'Penjejak Markah'!C528&COUNTIF('Penjejak Markah'!$C$4:C528,'Penjejak Markah'!C528)","v":"0"}]
[null,526,{"$f":"'Penjejak Markah'!C529&COUNTIF('Penjejak Markah'!$C$4:C529,'Penjejak Markah'!C529)","v":"0"}]
[null,527,{"$f":"'Penjejak Markah'!C530&COUNTIF('Penjejak Markah'!$C$4:C530,'Penjejak Markah'!C530)","v":"0"}]
[null,528,{"$f":"'Penjejak Markah'!C531&COUNTIF('Penjejak Markah'!$C$4:C531,'Penjejak Markah'!C531)","v":"0"}]
[null,529,{"$f":"'Penjejak Markah'!C532&COUNTIF('Penjejak Markah'!$C$4:C532,'Penjejak Markah'!C532)","v":"0"}]
[null,530,{"$f":"'Penjejak Markah'!C533&COUNTIF('Penjejak Markah'!$C$4:C533,'Penjejak Markah'!C533)","v":"0"}]
[null,531,{"$f":"'Penjejak Markah'!C534&COUNTIF('Penjejak Markah'!$C$4:C534,'Penjejak Markah'!C534)","v":"0"}]
[null,532,{"$f":"'Penjejak Markah'!C535&COUNTIF('Penjejak Markah'!$C$4:C535,'Penjejak Markah'!C535)","v":"0"}]
[null,533,{"$f":"'Penjejak Markah'!C536&COUNTIF('Penjejak Markah'!$C$4:C536,'Penjejak Markah'!C536)","v":"0"}]
[null,534,{"$f":"'Penjejak Markah'!C537&COUNTIF('Penjejak Markah'!$C$4:C537,'Penjejak Markah'!C537)","v":"0"}]
[null,535,{"$f":"'Penjejak Markah'!C538&COUNTIF('Penjejak Markah'!$C$4:C538,'Penjejak Markah'!C538)","v":"0"}]
[null,536,{"$f":"'Penjejak Markah'!C539&COUNTIF('Penjejak Markah'!$C$4:C539,'Penjejak Markah'!C539)","v":"0"}]
[null,537,{"$f":"'Penjejak Markah'!C540&COUNTIF('Penjejak Markah'!$C$4:C540,'Penjejak Markah'!C540)","v":"0"}]
[null,538,{"$f":"'Penjejak Markah'!C541&COUNTIF('Penjejak Markah'!$C$4:C541,'Penjejak Markah'!C541)","v":"0"}]
[null,539,{"$f":"'Penjejak Markah'!C542&COUNTIF('Penjejak Markah'!$C$4:C542,'Penjejak Markah'!C542)","v":"0"}]
[null,540,{"$f":"'Penjejak Markah'!C543&COUNTIF('Penjejak Markah'!$C$4:C543,'Penjejak Markah'!C543)","v":"0"}]
[null,541,{"$f":"'Penjejak Markah'!C544&COUNTIF('Penjejak Markah'!$C$4:C544,'Penjejak Markah'!C544)","v":"0"}]
[null,542,{"$f":"'Penjejak Markah'!C545&COUNTIF('Penjejak Markah'!$C$4:C545,'Penjejak Markah'!C545)","v":"0"}]
[null,543,{"$f":"'Penjejak Markah'!C546&COUNTIF('Penjejak Markah'!$C$4:C546,'Penjejak Markah'!C546)","v":"0"}]
[null,544,{"$f":"'Penjejak Markah'!C547&COUNTIF('Penjejak Markah'!$C$4:C547,'Penjejak Markah'!C547)","v":"0"}]
[null,545,{"$f":"'Penjejak Markah'!C548&COUNTIF('Penjejak Markah'!$C$4:C548,'Penjejak Markah'!C548)","v":"0"}]
[null,546,{"$f":"'Penjejak Markah'!C549&COUNTIF('Penjejak Markah'!$C$4:C549,'Penjejak Markah'!C549)","v":"0"}]
[null,547,{"$f":"'Penjejak Markah'!C550&COUNTIF('Penjejak Markah'!$C$4:C550,'Penjejak Markah'!C550)","v":"0"}]
[null,548,{"$f":"'Penjejak Markah'!C551&COUNTIF('Penjejak Markah'!$C$4:C551,'Penjejak Markah'!C551)","v":"0"}]
[null,549,{"$f":"'Penjejak Markah'!C552&COUNTIF('Penjejak Markah'!$C$4:C552,'Penjejak Markah'!C552)","v":"0"}]
[null,550,{"$f":"'Penjejak Markah'!C553&COUNTIF('Penjejak Markah'!$C$4:C553,'Penjejak Markah'!C553)","v":"0"}]
[null,551,{"$f":"'Penjejak Markah'!C554&COUNTIF('Penjejak Markah'!$C$4:C554,'Penjejak Markah'!C554)","v":"0"}]
[null,552,{"$f":"'Penjejak Markah'!C555&COUNTIF('Penjejak Markah'!$C$4:C555,'Penjejak Markah'!C555)","v":"0"}]
[null,553,{"$f":"'Penjejak Markah'!C556&COUNTIF('Penjejak Markah'!$C$4:C556,'Penjejak Markah'!C556)","v":"0"}]
[null,554,{"$f":"'Penjejak Markah'!C557&COUNTIF('Penjejak Markah'!$C$4:C557,'Penjejak Markah'!C557)","v":"0"}]
[null,555,{"$f":"'Penjejak Markah'!C558&COUNTIF('Penjejak Markah'!$C$4:C558,'Penjejak Markah'!C558)","v":"0"}]
[null,556,{"$f":"'Penjejak Markah'!C559&COUNTIF('Penjejak Markah'!$C$4:C559,'Penjejak Markah'!C559)","v":"0"}]
[null,557,{"$f":"'Penjejak Markah'!C560&COUNTIF('Penjejak Markah'!$C$4:C560,'Penjejak Markah'!C560)","v":"0"}]
[null,558,{"$f":"'Penjejak Markah'!C561&COUNTIF('Penjejak Markah'!$C$4:C561,'Penjejak Markah'!C561)","v":"0"}]
[null,559,{"$f":"'Penjejak Markah'!C562&COUNTIF('Penjejak Markah'!$C$4:C562,'Penjejak Markah'!C562)","v":"0"}]
[null,560,{"$f":"'Penjejak Markah'!C563&COUNTIF('Penjejak Markah'!$C$4:C563,'Penjejak Markah'!C563)","v":"0"}]
[null,561,{"$f":"'Penjejak Markah'!C564&COUNTIF('Penjejak Markah'!$C$4:C564,'Penjejak Markah'!C564)","v":"0"}]
[null,562,{"$f":"'Penjejak Markah'!C565&COUNTIF('Penjejak Markah'!$C$4:C565,'Penjejak Markah'!C565)","v":"0"}]
[null,563,{"$f":"'Penjejak Markah'!C566&COUNTIF('Penjejak Markah'!$C$4:C566,'Penjejak Markah'!C566)","v":"0"}]
[null,564,{"$f":"'Penjejak Markah'!C567&COUNTIF('Penjejak Markah'!$C$4:C567,'Penjejak Markah'!C567)","v":"0"}]
[null,565,{"$f":"'Penjejak Markah'!C568&COUNTIF('Penjejak Markah'!$C$4:C568,'Penjejak Markah'!C568)","v":"0"}]
[null,566,{"$f":"'Penjejak Markah'!C569&COUNTIF('Penjejak Markah'!$C$4:C569,'Penjejak Markah'!C569)","v":"0"}]
[null,567,{"$f":"'Penjejak Markah'!C570&COUNTIF('Penjejak Markah'!$C$4:C570,'Penjejak Markah'!C570)","v":"0"}]
[null,568,{"$f":"'Penjejak Markah'!C571&COUNTIF('Penjejak Markah'!$C$4:C571,'Penjejak Markah'!C571)","v":"0"}]
[null,569,{"$f":"'Penjejak Markah'!C572&COUNTIF('Penjejak Markah'!$C$4:C572,'Penjejak Markah'!C572)","v":"0"}]
[null,570,{"$f":"'Penjejak Markah'!C573&COUNTIF('Penjejak Markah'!$C$4:C573,'Penjejak Markah'!C573)","v":"0"}]
[null,571,{"$f":"'Penjejak Markah'!C574&COUNTIF('Penjejak Markah'!$C$4:C574,'Penjejak Markah'!C574)","v":"0"}]
[null,572,{"$f":"'Penjejak Markah'!C575&COUNTIF('Penjejak Markah'!$C$4:C575,'Penjejak Markah'!C575)","v":"0"}]
[null,573,{"$f":"'Penjejak Markah'!C576&COUNTIF('Penjejak Markah'!$C$4:C576,'Penjejak Markah'!C576)","v":"0"}]
[null,574,{"$f":"'Penjejak Markah'!C577&COUNTIF('Penjejak Markah'!$C$4:C577,'Penjejak Markah'!C577)","v":"0"}]
[null,575,{"$f":"'Penjejak Markah'!C578&COUNTIF('Penjejak Markah'!$C$4:C578,'Penjejak Markah'!C578)","v":"0"}]
[null,576,{"$f":"'Penjejak Markah'!C579&COUNTIF('Penjejak Markah'!$C$4:C579,'Penjejak Markah'!C579)","v":"0"}]
[null,577,{"$f":"'Penjejak Markah'!C580&COUNTIF('Penjejak Markah'!$C$4:C580,'Penjejak Markah'!C580)","v":"0"}]
[null,578,{"$f":"'Penjejak Markah'!C581&COUNTIF('Penjejak Markah'!$C$4:C581,'Penjejak Markah'!C581)","v":"0"}]
[null,579,{"$f":"'Penjejak Markah'!C582&COUNTIF('Penjejak Markah'!$C$4:C582,'Penjejak Markah'!C582)","v":"0"}]
[null,580,{"$f":"'Penjejak Markah'!C583&COUNTIF('Penjejak Markah'!$C$4:C583,'Penjejak Markah'!C583)","v":"0"}]
[null,581,{"$f":"'Penjejak Markah'!C584&COUNTIF('Penjejak Markah'!$C$4:C584,'Penjejak Markah'!C584)","v":"0"}]
[null,582,{"$f":"'Penjejak Markah'!C585&COUNTIF('Penjejak Markah'!$C$4:C585,'Penjejak Markah'!C585)","v":"0"}]
[null,583,{"$f":"'Penjejak Markah'!C586&COUNTIF('Penjejak Markah'!$C$4:C586,'Penjejak Markah'!C586)","v":"0"}]
[null,584,{"$f":"'Penjejak Markah'!C587&COUNTIF('Penjejak Markah'!$C$4:C587,'Penjejak Markah'!C587)","v":"0"}]
[null,585,{"$f":"'Penjejak Markah'!C588&COUNTIF('Penjejak Markah'!$C$4:C588,'Penjejak Markah'!C588)","v":"0"}]
[null,586,{"$f":"'Penjejak Markah'!C589&COUNTIF('Penjejak Markah'!$C$4:C589,'Penjejak Markah'!C589)","v":"0"}]
[null,587,{"$f":"'Penjejak Markah'!C590&COUNTIF('Penjejak Markah'!$C$4:C590,'Penjejak Markah'!C590)","v":"0"}]
[null,588,{"$f":"'Penjejak Markah'!C591&COUNTIF('Penjejak Markah'!$C$4:C591,'Penjejak Markah'!C591)","v":"0"}]
[null,589,{"$f":"'Penjejak Markah'!C592&COUNTIF('Penjejak Markah'!$C$4:C592,'Penjejak Markah'!C592)","v":"0"}]
[null,590,{"$f":"'Penjejak Markah'!C593&COUNTIF('Penjejak Markah'!$C$4:C593,'Penjejak Markah'!C593)","v":"0"}]
[null,591,{"$f":"'Penjejak Markah'!C594&COUNTIF('Penjejak Markah'!$C$4:C594,'Penjejak Markah'!C594)","v":"0"}]
[null,592,{"$f":"'Penjejak Markah'!C595&COUNTIF('Penjejak Markah'!$C$4:C595,'Penjejak Markah'!C595)","v":"0"}]
[null,593,{"$f":"'Penjejak Markah'!C596&COUNTIF('Penjejak Markah'!$C$4:C596,'Penjejak Markah'!C596)","v":"0"}]
[null,594,{"$f":"'Penjejak Markah'!C597&COUNTIF('Penjejak Markah'!$C$4:C597,'Penjejak Markah'!C597)","v":"0"}]
[null,595,{"$f":"'Penjejak Markah'!C598&COUNTIF('Penjejak Markah'!$C$4:C598,'Penjejak Markah'!C598)","v":"0"}]
[null,596,{"$f":"'Penjejak Markah'!C599&COUNTIF('Penjejak Markah'!$C$4:C599,'Penjejak Markah'!C599)","v":"0"}]
[null,597,{"$f":"'Penjejak Markah'!C600&COUNTIF('Penjejak Markah'!$C$4:C600,'Penjejak Markah'!C600)","v":"0"}]
[null,598,{"$f":"'Penjejak Markah'!C601&COUNTIF('Penjejak Markah'!$C$4:C601,'Penjejak Markah'!C601)","v":"0"}]
[null,599,{"$f":"'Penjejak Markah'!C602&COUNTIF('Penjejak Markah'!$C$4:C602,'Penjejak Markah'!C602)","v":"0"}]
[null,600,{"$f":"'Penjejak Markah'!C603&COUNTIF('Penjejak Markah'!$C$4:C603,'Penjejak Markah'!C603)","v":"0"}]
[null,601,{"$f":"'Penjejak Markah'!C604&COUNTIF('Penjejak Markah'!$C$4:C604,'Penjejak Markah'!C604)","v":"0"}]
[null,602,{"$f":"'Penjejak Markah'!C605&COUNTIF('Penjejak Markah'!$C$4:C605,'Penjejak Markah'!C605)","v":"0"}]
[null,603,{"$f":"'Penjejak Markah'!C606&COUNTIF('Penjejak Markah'!$C$4:C606,'Penjejak Markah'!C606)","v":"0"}]
[null,604,{"$f":"'Penjejak Markah'!C607&COUNTIF('Penjejak Markah'!$C$4:C607,'Penjejak Markah'!C607)","v":"0"}]
[null,605,{"$f":"'Penjejak Markah'!C608&COUNTIF('Penjejak Markah'!$C$4:C608,'Penjejak Markah'!C608)","v":"0"}]
[null,606,{"$f":"'Penjejak Markah'!C609&COUNTIF('Penjejak Markah'!$C$4:C609,'Penjejak Markah'!C609)","v":"0"}]
[null,607,{"$f":"'Penjejak Markah'!C610&COUNTIF('Penjejak Markah'!$C$4:C610,'Penjejak Markah'!C610)","v":"0"}]
[null,608,{"$f":"'Penjejak Markah'!C611&COUNTIF('Penjejak Markah'!$C$4:C611,'Penjejak Markah'!C611)","v":"0"}]
[null,609,{"$f":"'Penjejak Markah'!C612&COUNTIF('Penjejak Markah'!$C$4:C612,'Penjejak Markah'!C612)","v":"0"}]
[null,610,{"$f":"'Penjejak Markah'!C613&COUNTIF('Penjejak Markah'!$C$4:C613,'Penjejak Markah'!C613)","v":"0"}]
[null,611,{"$f":"'Penjejak Markah'!C614&COUNTIF('Penjejak Markah'!$C$4:C614,'Penjejak Markah'!C614)","v":"0"}]
[null,612,{"$f":"'Penjejak Markah'!C615&COUNTIF('Penjejak Markah'!$C$4:C615,'Penjejak Markah'!C615)","v":"0"}]
[null,613,{"$f":"'Penjejak Markah'!C616&COUNTIF('Penjejak Markah'!$C$4:C616,'Penjejak Markah'!C616)","v":"0"}]
[null,614,{"$f":"'Penjejak Markah'!C617&COUNTIF('Penjejak Markah'!$C$4:C617,'Penjejak Markah'!C617)","v":"0"}]
[null,615,{"$f":"'Penjejak Markah'!C618&COUNTIF('Penjejak Markah'!$C$4:C618,'Penjejak Markah'!C618)","v":"0"}]
[null,616,{"$f":"'Penjejak Markah'!C619&COUNTIF('Penjejak Markah'!$C$4:C619,'Penjejak Markah'!C619)","v":"0"}]
[null,617,{"$f":"'Penjejak Markah'!C620&COUNTIF('Penjejak Markah'!$C$4:C620,'Penjejak Markah'!C620)","v":"0"}]
[null,618,{"$f":"'Penjejak Markah'!C621&COUNTIF('Penjejak Markah'!$C$4:C621,'Penjejak Markah'!C621)","v":"0"}]
[null,619,{"$f":"'Penjejak Markah'!C622&COUNTIF('Penjejak Markah'!$C$4:C622,'Penjejak Markah'!C622)","v":"0"}]
[null,620,{"$f":"'Penjejak Markah'!C623&COUNTIF('Penjejak Markah'!$C$4:C623,'Penjejak Markah'!C623)","v":"0"}]
[null,621,{"$f":"'Penjejak Markah'!C624&COUNTIF('Penjejak Markah'!$C$4:C624,'Penjejak Markah'!C624)","v":"0"}]
[null,622,{"$f":"'Penjejak Markah'!C625&COUNTIF('Penjejak Markah'!$C$4:C625,'Penjejak Markah'!C625)","v":"0"}]
[null,623,{"$f":"'Penjejak Markah'!C626&COUNTIF('Penjejak Markah'!$C$4:C626,'Penjejak Markah'!C626)","v":"0"}]
[null,624,{"$f":"'Penjejak Markah'!C627&COUNTIF('Penjejak Markah'!$C$4:C627,'Penjejak Markah'!C627)","v":"0"}]
[null,625,{"$f":"'Penjejak Markah'!C628&COUNTIF('Penjejak Markah'!$C$4:C628,'Penjejak Markah'!C628)","v":"0"}]